{"text_format":"1","workbook":"xlsx","n_sheets":28,"sheets":["journal","embt1","toutal","محمد.سميرابراهيم","احمدثابت","يثرب","عمرابوسريع","اجرولايف","الصرح","رمضان.عبد.الحكيم_محمد","فرج.كمال.محمود.فرج.هلال","محمد.سامى.المشد.فيوتشر","وائل.فوزى.يونيفرسال","محمد.احمد.فاروق","ستون.احمد.عبد.المنعم","محمود.لطفى.محمود.عبد.البارى","مصنع.الفنية.للخراطة.شمندى","بيومى.أنور.بيومى.فرج","شركة.جيسكو.للتاريض","حسين.محسن.احمد","خالد.فريد.محمد","خليفه.فرغلى.عبدالحميد","سيد.احمد.ذكى","شركة.الاتحاد.شريف.معوض","شركة.الصفا.سيزر.مان.لفت","صبحى.السيد.عبد.العزيز.بيومى","شوقى.سيد.عبده","شركة.ماستر.بيلدرز"],"not_rendered":{"charts":0,"images":1,"macros":1,"external_links":1,"defined_names":54,"comments":1,"pivot_tables":0},"unopened":[],"bounds":{"document_bytes":16777216,"sheet_cells":100000,"rows_first":2000,"rows_last":500,"rows_between":2000,"halvings":0,"cell_chars":16384,"cell_head_chars":4096},"cells_cut":0,"cells_raw":0,"read":"whole","date_system":"1900"}

{"sheet":"journal","index":0,"n_rows":236,"n_cols":20,"rows_kept":236,"cut":false,"hidden":false,"merged":[]}
[]
[]
["مسلسل","التاريخ","اسم المقاول","الحركة /رقم القيد","العملية","البيــان","اسم المشروع","رقم العقد","تاريخ العقد","بداية الاعمال","نهاية الاعمال","قيمة العقد","رقم المستخلص","ينود الاعمال","الكمية","الوحدة","السعر","نسبة القيمة من العقد","الدفعات / الخصم","قيمة المستخلص"]
[{"$f":"IF(M4<>\"\",1,\"\")","v":1},"2025-01-05","محمد.سميرابراهيم","جارى 1","مستخص","مستخلص","مشروع اعمال مجمع الثلاجات البطاطس محطة الفرز و التعبئة /2023",null,null,null,null,50000,"ج1",null,50,"عدد",1145,null,{"$f":"'[1]ارصده المقاولين'!K159","v":0},{"$f":"+O4*Q4","v":57250}]
[{"$f":"IF(M5<>\"\",1,\"\")","v":""},"2025-01-07","محمد.سميرابراهيم","105550","دفعات","ينك مصر","مشروع اعمال مجمع الثلاجات البطاطس محطة الفرز و التعبئة /2023",null,null,null,null,null,null,null,null,null,null,null,50000]
[{"$f":"IF(M6<>\"\",1,\"\")","v":1},"2025-01-05","احمدثابت","جارى 1","مستخص","مستخلص","مشروع اعمال مجمع الثلاجات البطاطس محطة الفرز و التعبئة /2023",null,null,null,null,50000,"ج1",null,50,"عدد",1145,null,null,{"$f":"+O6*Q6","v":57250}]
["","2025-01-07","احمدثابت","105550","دفعات","ينك مصر","مشروع اعمال مجمع الثلاجات البطاطس محطة الفرز و التعبئة /2023",null,null,null,null,null,null,null,null,null,null,null,50000]
[1,"2025-01-05","يثرب","جارى 1","مستخص","مستخلص","مشروع اعمال مجمع الثلاجات البطاطس محطة الفرز و التعبئة /2023",null,null,null,null,50000,"ج1",null,50,"عدد",1145,null,null,{"$f":"+O8*Q8","v":57250}]
["","2025-01-07","يثرب","105550","دفعات","ينك مصر","مشروع اعمال مجمع الثلاجات البطاطس محطة الفرز و التعبئة /2023",null,null,null,null,null,null,null,null,null,null,null,50000]
[1,"2025-01-05","الصرح","جارى 1","مستخص","مستخلص","مشروع اعمال مجمع الثلاجات البطاطس محطة الفرز و التعبئة /2023",null,null,null,null,50000,"ج1",null,50,"عدد",1145,null,null,{"$f":"+O10*Q10","v":57250}]
["","2025-01-07","الصرح","105550","دفعات","ينك مصر","مشروع اعمال مجمع الثلاجات البطاطس محطة الفرز و التعبئة /2023",null,null,null,null,null,null,null,null,null,null,null,50000]
[1,"2025-01-05","فرج.كمال.محمود.فرج.هلال","جارى 1","مستخص","مستخلص","مشروع اعمال مجمع الثلاجات البطاطس محطة الفرز و التعبئة /2023",null,null,null,null,50000,"ج1",null,50,"عدد",1145,null,null,{"$f":"+O12*Q12","v":57250}]
["","2025-01-07","فرج.كمال.محمود.فرج.هلال","105550","دفعات","ينك مصر","مشروع اعمال مجمع الثلاجات البطاطس محطة الفرز و التعبئة /2023",null,null,null,null,null,null,null,null,null,null,null,50000]
[1,"2025-01-05","محمد.احمد.فاروق","جارى 1","مستخص","مستخلص","مشروع اعمال مجمع الثلاجات البطاطس محطة الفرز و التعبئة /2023",null,null,null,null,50000,"ج1",null,50,"عدد",1145,null,null,{"$f":"+O14*Q14","v":57250}]
["","2025-01-07","محمد.احمد.فاروق","105550","دفعات","ينك مصر","مشروع اعمال مجمع الثلاجات البطاطس محطة الفرز و التعبئة /2023",null,null,null,null,null,null,null,null,null,null,null,50000]
[1,"2025-01-05","محمد.سامى.المشد.فيوتشر","جارى 1","مستخص","مستخلص","مشروع اعمال مجمع الثلاجات البطاطس محطة الفرز و التعبئة /2023",null,null,null,null,50000,"ج1",null,50,"عدد",1145,null,null,{"$f":"+O16*Q16","v":57250}]
["","2025-01-07","محمد.سامى.المشد.فيوتشر","105550","دفعات","ينك مصر","مشروع اعمال مجمع الثلاجات البطاطس محطة الفرز و التعبئة /2023",null,null,null,null,null,null,null,null,null,null,null,50000]
[1,"2025-01-05","محمد.سميرابراهيم","جارى 1","مستخص","مستخلص","مشروع اعمال مجمع الثلاجات البطاطس محطة الفرز و التعبئة /2023",null,null,null,null,50000,"ج1",null,50,"عدد",1145,null,null,{"$f":"+O18*Q18","v":57250}]
["","2025-01-07","محمد.سميرابراهيم","105550","دفعات","ينك مصر","مشروع اعمال مجمع الثلاجات البطاطس محطة الفرز و التعبئة /2023",null,null,null,null,null,null,null,null,null,null,null,50000]
[1,"2025-01-05","احمدثابت","جارى 1","مستخص","مستخلص","مشروع اعمال مجمع الثلاجات البطاطس محطة الفرز و التعبئة /2023",null,null,null,null,50000,"ج1",null,50,"عدد",1145,null,null,{"$f":"+O20*Q20","v":57250}]
["","2025-01-07","احمدثابت","105550","دفعات","ينك مصر","مشروع اعمال مجمع الثلاجات البطاطس محطة الفرز و التعبئة /2023",null,null,null,null,null,null,null,null,null,null,null,50000]
[1,"2025-01-05","يثرب","جارى 1","مستخص","مستخلص","مشروع اعمال مجمع الثلاجات البطاطس محطة الفرز و التعبئة /2023",null,null,null,null,50000,"ج1",null,50,"عدد",1145,null,null,{"$f":"+O22*Q22","v":57250}]
["","2025-01-07","يثرب","105550","دفعات","ينك مصر","مشروع اعمال مجمع الثلاجات البطاطس محطة الفرز و التعبئة /2023",null,null,null,null,null,null,null,null,null,null,null,50000]
[1,"2025-01-05","الصرح","جارى 1","مستخص","مستخلص","مشروع اعمال مجمع الثلاجات البطاطس محطة الفرز و التعبئة /2023",null,null,null,null,50000,"ج1",null,50,"عدد",1145,null,null,{"$f":"+O24*Q24","v":57250}]
["","2025-01-07","الصرح","105550","دفعات","ينك مصر","مشروع اعمال مجمع الثلاجات البطاطس محطة الفرز و التعبئة /2023",null,null,null,null,null,null,null,null,null,null,null,50000]
[1,"2025-01-05","فرج.كمال.محمود.فرج.هلال","جارى 1","مستخص","مستخلص","مشروع اعمال مجمع الثلاجات البطاطس محطة الفرز و التعبئة /2023",null,null,null,null,50000,"ج1",null,50,"عدد",1145,null,null,{"$f":"+O26*Q26","v":57250}]
["","2025-01-07","فرج.كمال.محمود.فرج.هلال","105550","دفعات","ينك مصر","مشروع اعمال مجمع الثلاجات البطاطس محطة الفرز و التعبئة /2023",null,null,null,null,null,null,null,null,null,null,null,50000]
[1,"2025-01-05","محمد.احمد.فاروق","جارى 1","مستخص","مستخلص","مشروع اعمال مجمع الثلاجات البطاطس محطة الفرز و التعبئة /2023",null,null,null,null,50000,"ج1",null,50,"عدد",1145,null,null,{"$f":"+O28*Q28","v":57250}]
["","2025-01-07","محمد.احمد.فاروق","105550","دفعات","ينك مصر","مشروع اعمال مجمع الثلاجات البطاطس محطة الفرز و التعبئة /2023",null,null,null,null,null,null,null,null,null,null,null,50000]
[1,"2025-01-05","محمد.سامى.المشد.فيوتشر","جارى 1","مستخص","مستخلص","مشروع اعمال مجمع الثلاجات البطاطس محطة الفرز و التعبئة /2023",null,null,null,null,50000,"ج1",null,50,"عدد",1145,null,null,{"$f":"+O30*Q30","v":57250}]
["","2025-01-07","محمد.سامى.المشد.فيوتشر","105550","دفعات","ينك مصر","مشروع اعمال مجمع الثلاجات البطاطس محطة الفرز و التعبئة /2023",null,null,null,null,null,null,null,null,null,null,null,50000]
[1,"2025-01-05","محمد.سميرابراهيم","جارى 1","مستخص","مستخلص","مشروع اعمال مجمع الثلاجات البطاطس محطة الفرز و التعبئة /2023",null,null,null,null,50000,"ج1",null,50,"عدد",1145,null,null,{"$f":"+O32*Q32","v":57250}]
["","2025-01-07","محمد.سميرابراهيم","105550","دفعات","ينك مصر","مشروع اعمال مجمع الثلاجات البطاطس محطة الفرز و التعبئة /2023",null,null,null,null,null,null,null,null,null,null,null,50000]
[1,"2025-01-05","احمدثابت","جارى 1","مستخص","مستخلص","مشروع اعمال مجمع الثلاجات البطاطس محطة الفرز و التعبئة /2023",null,null,null,null,50000,"ج1",null,50,"عدد",1145,null,null,{"$f":"+O34*Q34","v":57250}]
["","2025-01-07","احمدثابت","105550","دفعات","ينك مصر","مشروع اعمال مجمع الثلاجات البطاطس محطة الفرز و التعبئة /2023",null,null,null,null,null,null,null,null,null,null,null,50000]
[1,"2025-01-05","يثرب","جارى 1","مستخص","مستخلص","مشروع اعمال مجمع الثلاجات البطاطس محطة الفرز و التعبئة /2023",null,null,null,null,50000,"ج1",null,50,"عدد",1145,null,null,{"$f":"+O36*Q36","v":57250}]
["","2025-01-07","يثرب","105550","دفعات","ينك مصر","مشروع اعمال مجمع الثلاجات البطاطس محطة الفرز و التعبئة /2023",null,null,null,null,null,null,null,null,null,null,null,50000]
[1,"2025-01-05","الصرح","جارى 1","مستخص","مستخلص","مشروع اعمال مجمع الثلاجات البطاطس محطة الفرز و التعبئة /2023",null,null,null,null,50000,"ج1",null,50,"عدد",1145,null,null,{"$f":"+O38*Q38","v":57250}]
["","2025-01-07","الصرح","105550","دفعات","ينك مصر","مشروع اعمال مجمع الثلاجات البطاطس محطة الفرز و التعبئة /2023",null,null,null,null,null,null,null,null,null,null,null,50000,0]
[1,"2025-01-05","فرج.كمال.محمود.فرج.هلال","جارى 1","مستخص","مستخلص","مشروع اعمال مجمع الثلاجات البطاطس محطة الفرز و التعبئة /2023",null,null,null,null,50000,"ج1",null,50,"عدد",1145,null,null,{"$f":"+O40*Q40","v":57250}]
["","2025-01-07","فرج.كمال.محمود.فرج.هلال","105550","دفعات","ينك مصر","مشروع اعمال مجمع الثلاجات البطاطس محطة الفرز و التعبئة /2023",null,null,null,null,null,null,null,null,null,null,null,50000]
[1,"2025-01-05","محمد.احمد.فاروق","جارى 1","مستخص","مستخلص","مشروع اعمال مجمع الثلاجات البطاطس محطة الفرز و التعبئة /2023",null,null,null,null,50000,"ج1",null,50,"عدد",1145,null,null,{"$f":"+O42*Q42","v":57250}]
["","2025-01-07","محمد.احمد.فاروق","105550","دفعات","ينك مصر","مشروع اعمال مجمع الثلاجات البطاطس محطة الفرز و التعبئة /2023",null,null,null,null,null,null,null,null,null,null,null,50000]
[1,"2025-01-05","محمد.سامى.المشد.فيوتشر","جارى 1","مستخص","مستخلص","مشروع اعمال مجمع الثلاجات البطاطس محطة الفرز و التعبئة /2023",null,null,null,null,50000,"ج1",null,50,"عدد",1145,null,null,{"$f":"+O44*Q44","v":57250}]
["","2025-01-07","محمد.سامى.المشد.فيوتشر","105550","دفعات","ينك مصر","مشروع اعمال مجمع الثلاجات البطاطس محطة الفرز و التعبئة /2023",null,null,null,null,null,null,null,null,null,null,null,50000]
[1,"2025-01-05","محمد.سميرابراهيم","جارى 1","مستخص","مستخلص","مشروع اعمال مجمع الثلاجات البطاطس محطة الفرز و التعبئة /2023",null,null,null,null,50000,"ج1",null,50,"عدد",1145,null,null,{"$f":"+O46*Q46","v":57250}]
["","2025-01-07","محمد.سميرابراهيم","105550","دفعات","ينك مصر","مشروع اعمال مجمع الثلاجات البطاطس محطة الفرز و التعبئة /2023",null,null,null,null,null,null,null,null,null,null,null,50000]
[1,"2025-01-05","احمدثابت","جارى 1","مستخص","مستخلص","مشروع اعمال مجمع الثلاجات البطاطس محطة الفرز و التعبئة /2023",null,null,null,null,50000,"ج1",null,50,"عدد",1145,null,null,{"$f":"+O48*Q48","v":57250}]
["","2025-01-07","احمدثابت","105550","دفعات","ينك مصر","مشروع اعمال مجمع الثلاجات البطاطس محطة الفرز و التعبئة /2023",null,null,null,null,null,null,null,null,null,null,null,50000]
[1,"2025-01-05","يثرب","جارى 1","مستخص","مستخلص","مشروع اعمال مجمع الثلاجات البطاطس محطة الفرز و التعبئة /2023",null,null,null,null,50000,"ج1",null,50,"عدد",1145,null,null,{"$f":"+O50*Q50","v":57250}]
["","2025-01-07","يثرب","105550","دفعات","ينك مصر","مشروع اعمال مجمع الثلاجات البطاطس محطة الفرز و التعبئة /2023",null,null,null,null,null,null,null,null,null,null,null,50000]
[1,"2025-01-05","الصرح","جارى 1","مستخص","مستخلص","مشروع اعمال مجمع الثلاجات البطاطس محطة الفرز و التعبئة /2023",null,null,null,null,50000,"ج1",null,50,"عدد",1145,null,null,{"$f":"+O52*Q52","v":57250}]
["","2025-01-07","الصرح","105550","دفعات","ينك مصر","مشروع اعمال مجمع الثلاجات البطاطس محطة الفرز و التعبئة /2023",null,null,null,null,null,null,null,null,null,null,null,50000]
[1,"2025-01-05","فرج.كمال.محمود.فرج.هلال","جارى 1","مستخص","مستخلص","مشروع اعمال مجمع الثلاجات البطاطس محطة الفرز و التعبئة /2023",null,null,null,null,50000,"ج1",null,50,"عدد",1145,null,null,{"$f":"+O54*Q54","v":57250}]
["","2025-01-07","فرج.كمال.محمود.فرج.هلال","105550","دفعات","ينك مصر","مشروع اعمال مجمع الثلاجات البطاطس محطة الفرز و التعبئة /2023",null,null,null,null,null,null,null,null,null,null,null,50000]
[1,"2025-01-05","محمد.احمد.فاروق","جارى 1","مستخص","مستخلص","مشروع اعمال مجمع الثلاجات البطاطس محطة الفرز و التعبئة /2023",null,null,null,null,50000,"ج1",null,50,"عدد",1145,null,null,{"$f":"+O56*Q56","v":57250}]
["","2025-01-07","محمد.احمد.فاروق","105550","دفعات","ينك مصر","مشروع اعمال مجمع الثلاجات البطاطس محطة الفرز و التعبئة /2023",null,null,null,null,null,null,null,null,null,null,null,50000]
[1,"2025-01-05","محمد.سامى.المشد.فيوتشر","جارى 1","مستخص","مستخلص","مشروع اعمال مجمع الثلاجات البطاطس محطة الفرز و التعبئة /2023",null,null,null,null,50000,"ج1",null,50,"عدد",1145,null,null,{"$f":"+O58*Q58","v":57250}]
["","2025-01-07","محمد.سامى.المشد.فيوتشر","105550","دفعات","ينك مصر","مشروع اعمال مجمع الثلاجات البطاطس محطة الفرز و التعبئة /2023",null,null,null,null,null,null,null,null,null,null,null,50000,{"$f":"+O59*Q59","v":0}]
[1,"2025-01-05","محمد.سميرابراهيم","جارى 1","مستخص","مستخلص","مشروع اعمال مجمع الثلاجات البطاطس محطة الفرز و التعبئة /2023",null,null,null,null,50000,"ج1",null,50,"عدد",1145,null,null,{"$f":"+O60*Q60","v":57250}]
["","2025-01-07","محمد.سميرابراهيم","105550","دفعات","ينك مصر","مشروع اعمال مجمع الثلاجات البطاطس محطة الفرز و التعبئة /2023",null,null,null,null,null,null,null,null,null,null,null,50000,0]
[null,null,null,null,null,null,null,null,null,null,null,null,null,null,null,null,null,null,null,0]
[null,null,null,null,null,null,null,null,null,null,null,null,null,null,null,null,null,null,null,0]
[null,null,null,null,null,null,null,null,null,null,null,null,null,null,null,null,null,null,null,0]
[null,null,null,null,null,null,null,null,null,null,null,null,null,null,null,null,null,null,null,0]
[null,null,null,null,null,null,null,null,null,null,null,null,null,null,null,null,null,null,null,0]
[null,null,null,null,null,null,null,null,null,null,null,null,null,null,null,null,null,null,null,0]
[null,null,null,null,null,null,null,null,null,null,null,null,null,null,null,null,null,null,null,0]
[null,null,null,null,null,null,null,null,null,null,null,null,null,null,null,null,null,null,null,0]
[null,null,null,null,null,null,null,null,null,null,null,null,null,null,null,null,null,null,null,0]
[null,null,null,null,null,null,null,null,null,null,null,null,null,null,null,null,null,null,null,0]
[null,null,null,null,null,null,null,null,null,null,null,null,null,null,null,null,null,null,null,0]
[null,null,null,null,null,null,null,null,null,null,null,null,null,null,null,null,null,null,null,0]
[null,null,null,null,null,null,null,null,null,null,null,null,null,null,null,null,null,null,null,0]
[null,null,null,null,null,null,null,null,null,null,null,null,null,null,null,null,null,null,null,0]
[null,null,null,null,null,null,null,null,null,null,null,null,null,null,null,null,null,null,null,0]
[null,null,null,null,null,null,null,null,null,null,null,null,null,null,null,null,null,null,null,0]
[null,null,null,null,null,null,null,null,null,null,null,null,null,null,null,null,null,null,null,0]
[null,null,null,null,null,null,null,null,null,null,null,null,null,null,null,null,null,null,null,0]
[null,null,null,null,null,null,null,null,null,null,null,null,null,null,null,null,null,null,null,0]
[null,null,null,null,null,null,null,null,null,null,null,null,null,null,null,null,null,null,null,0]
[null,null,null,null,null,null,null,null,null,null,null,null,null,null,null,null,null,null,null,0]
[null,null,null,null,null,null,null,null,null,null,null,null,null,null,null,null,null,null,null,0]
[null,null,null,null,null,null,null,null,null,null,null,null,null,null,null,null,null,null,null,0]
[null,null,null,null,null,null,null,null,null,null,null,null,null,null,null,null,null,null,null,0]
[null,null,null,null,null,null,null,null,null,null,null,null,null,null,null,null,null,null,null,0]
[null,null,null,null,null,null,null,null,null,null,null,null,null,null,null,null,null,null,null,0]
[null,null,null,null,null,null,null,null,null,null,null,null,null,null,null,null,null,null,null,0]
[null,null,null,null,null,null,null,null,null,null,null,null,null,null,null,null,null,null,null,0]
[null,null,null,null,null,null,null,null,null,null,null,null,null,null,null,null,null,null,null,0]
[null,null,null,null,null,null,null,null,null,null,null,null,null,null,null,null,null,null,null,0]
[null,null,null,null,null,null,null,null,null,null,null,null,null,null,null,null,null,null,null,0]
[null,null,null,null,null,null,null,null,null,null,null,null,null,null,null,null,null,null,null,0]
[null,null,null,null,null,null,null,null,null,null,null,null,null,null,null,null,null,null,null,0]
[null,null,null,null,null,null,null,null,null,null,null,null,null,null,null,null,null,null,null,0]
[null,null,null,null,null,null,null,null,null,null,null,null,null,null,null,null,null,null,null,0]
[null,null,null,null,null,null,null,null,null,null,null,null,null,null,null,null,null,null,null,0]
[null,null,null,null,null,null,null,null,null,null,null,null,null,null,null,null,null,null,null,0]
[null,null,null,null,null,null,null,null,null,null,null,null,null,null,null,null,null,null,null,0]
[null,null,null,null,null,null,null,null,null,null,null,null,null,null,null,null,null,null,null,0]
[null,null,null,null,null,null,null,null,null,null,null,null,null,null,null,null,null,null,null,0]
[null,null,null,null,null,null,null,null,null,null,null,null,null,null,null,null,null,null,null,0]
[null,null,null,null,null,null,null,null,null,null,null,null,null,null,null,null,null,null,null,0]
[null,null,null,null,null,null,null,null,null,null,null,null,null,null,null,null,null,null,null,0]
[null,null,null,null,null,null,null,null,null,null,null,null,null,null,null,null,null,null,null,0]
[null,null,null,null,null,null,null,null,null,null,null,null,null,null,null,null,null,null,null,0]
[null,null,null,null,null,null,null,null,null,null,null,null,null,null,null,null,null,null,null,0]
[null,null,null,null,null,null,null,null,null,null,null,null,null,null,null,null,null,null,null,0]
[null,null,null,null,null,null,null,null,null,null,null,null,null,null,null,null,null,null,null,0]
[null,null,null,null,null,null,null,null,null,null,null,null,null,null,null,null,null,null,null,0]
[null,null,null,null,null,null,null,null,null,null,null,null,null,null,null,null,null,null,null,0]
[null,null,null,null,null,null,null,null,null,null,null,null,null,null,null,null,null,null,null,0]
[null,null,null,null,null,null,null,null,null,null,null,null,null,null,null,null,null,null,null,0]
[null,null,null,null,null,null,null,null,null,null,null,null,null,null,null,null,null,null,null,0]
[null,null,null,null,null,null,null,null,null,null,null,null,null,null,null,null,null,null,null,0]
[null,null,null,null,null,null,null,null,null,null,null,null,null,null,null,null,null,null,null,0]
[null,null,null,null,null,null,null,null,null,null,null,null,null,null,null,null,null,null,null,0]
[null,null,null,null,null,null,null,null,null,null,null,null,null,null,null,null,null,null,null,0]
[null,null,null,null,null,null,null,null,null,null,null,null,null,null,null,null,null,null,null,0]
[null,null,null,null,null,null,null,null,null,null,null,null,null,null,null,null,null,null,null,0]
[null,null,null,null,null,null,null,null,null,null,null,null,null,null,null,null,null,null,null,0]
[null,null,null,null,null,null,null,null,null,null,null,null,null,null,null,null,null,null,null,0]
[null,null,null,null,null,null,null,null,null,null,null,null,null,null,null,null,null,null,null,0]
[null,null,null,null,null,null,null,null,null,null,null,null,null,null,null,null,null,null,null,{"$f":"+O124*Q124","v":0}]
[null,null,null,null,null,null,null,null,null,null,null,null,null,null,null,null,null,null,null,0]
[null,null,null,null,null,null,null,null,null,null,null,null,null,null,null,null,null,null,null,0]
[null,null,null,null,null,null,null,null,null,null,null,null,null,null,null,null,null,null,null,0]
[null,null,null,null,null,null,null,null,null,null,null,null,null,null,null,null,null,null,null,0]
[null,null,null,null,null,null,null,null,null,null,null,null,null,null,null,null,null,null,null,0]
[null,null,null,null,null,null,null,null,null,null,null,null,null,null,null,null,null,null,null,0]
[null,null,null,null,null,null,null,null,null,null,null,null,null,null,null,null,null,null,null,0]
[null,null,null,null,null,null,null,null,null,null,null,null,null,null,null,null,null,null,null,0]
[null,null,null,null,null,null,null,null,null,null,null,null,null,null,null,null,null,null,null,0]
[null,null,null,null,null,null,null,null,null,null,null,null,null,null,null,null,null,null,null,0]
[null,null,null,null,null,null,null,null,null,null,null,null,null,null,null,null,null,null,null,0]
[null,null,null,null,null,null,null,null,null,null,null,null,null,null,null,null,null,null,null,0]
[null,null,null,null,null,null,null,null,null,null,null,null,null,null,null,null,null,null,null,0]
[null,null,null,null,null,null,null,null,null,null,null,null,null,null,null,null,null,null,null,0]
[null,null,null,null,null,null,null,null,null,null,null,null,null,null,null,null,null,null,null,0]
[null,null,null,null,null,null,null,null,null,null,null,null,null,null,null,null,null,null,null,0]
[null,null,null,null,null,null,null,null,null,null,null,null,null,null,null,null,null,null,null,0]
[null,null,null,null,null,null,null,null,null,null,null,null,null,null,null,null,null,null,null,0]
[null,null,null,null,null,null,null,null,null,null,null,null,null,null,null,null,null,null,null,0]
[null,null,null,null,null,null,null,null,null,null,null,null,null,null,null,null,null,null,null,0]
[null,null,null,null,null,null,null,null,null,null,null,null,null,null,null,null,null,null,null,0]
[null,null,null,null,null,null,null,null,null,null,null,null,null,null,null,null,null,null,null,0]
[null,null,null,null,null,null,null,null,null,null,null,null,null,null,null,null,null,null,null,0]
[null,null,null,null,null,null,null,null,null,null,null,null,null,null,null,null,null,null,null,0]
[{"$f":"IF(M149<>\"\",A148+1,\"\")","v":""},null,null,null,null,null,null,null,null,null,null,null,null,null,null,null,null,null,null,0]
["",null,null,null,null,null,null,null,null,null,null,null,null,null,null,null,null,null,null,0]
["",null,null,null,null,null,null,null,null,null,null,null,null,null,null,null,null,null,null,0]
["",null,null,null,null,null,null,null,null,null,null,null,null,null,null,null,null,null,null,0]
["",null,null,null,null,null,null,null,null,null,null,null,null,null,null,null,null,null,null,0]
["",null,null,null,null,null,null,null,null,null,null,null,null,null,null,null,null,null,null,0]
["",null,null,null,null,null,null,null,null,null,null,null,null,null,null,null,null,null,null,0]
["",null,null,null,null,null,null,null,null,null,null,null,null,null,null,null,null,null,null,0]
["",null,null,null,null,null,null,null,null,null,null,null,null,null,null,null,null,null,null,0]
["",null,null,null,null,null,null,null,null,null,null,null,null,null,null,null,null,null,null,0]
["",null,null,null,null,null,null,null,null,null,null,null,null,null,null,null,null,null,null,0]
["",null,null,null,null,null,null,null,null,null,null,null,null,null,null,null,null,null,null,0]
["",null,null,null,null,null,null,null,null,null,null,null,null,null,null,null,null,null,null,0]
["",null,null,null,null,null,null,null,null,null,null,null,null,null,null,null,null,null,null,0]
["",null,null,null,null,null,null,null,null,null,null,null,null,null,null,null,null,null,null,0]
["",null,null,null,null,null,null,null,null,null,null,null,null,null,null,null,null,null,null,0]
["",null,null,null,null,null,null,null,null,null,null,null,null,null,null,null,null,null,null,0]
["",null,null,null,null,null,null,null,null,null,null,null,null,null,null,null,null,null,null,0]
["",null,null,null,null,null,null,null,null,null,null,null,null,null,null,null,null,null,null,0]
["",null,null,null,null,null,null,null,null,null,null,null,null,null,null,null,null,null,null,0]
["",null,null,null,null,null,null,null,null,null,null,null,null,null,null,null,null,null,null,0]
["",null,null,null,null,null,null,null,null,null,null,null,null,null,null,null,null,null,null,0]
["",null,null,null,null,null,null,null,null,null,null,null,null,null,null,null,null,null,null,0]
["",null,null,null,null,null,null,null,null,null,null,null,null,null,null,null,null,null,null,0]
["",null,null,null,null,null,null,null,null,null,null,null,null,null,null,null,null,null,null,0]
["",null,null,null,null,null,null,null,null,null,null,null,null,null,null,null,null,null,null,0]
["",null,null,null,null,null,null,null,null,null,null,null,null,null,null,null,null,null,null,0]
["",null,null,null,null,null,null,null,null,null,null,null,null,null,null,null,null,null,null,0]
["",null,null,null,null,null,null,null,null,null,null,null,null,null,null,null,null,null,null,0]
["",null,null,null,null,null,null,null,null,null,null,null,null,null,null,null,null,null,null,0]
["",null,null,null,null,null,null,null,null,null,null,null,null,null,null,null,null,null,null,0]
["",null,null,null,null,null,null,null,null,null,null,null,null,null,null,null,null,null,null,0]
["",null,null,null,null,null,null,null,null,null,null,null,null,null,null,null,null,null,null,0]
["",null,null,null,null,null,null,null,null,null,null,null,null,null,null,null,null,null,null,0]
["",null,null,null,null,null,null,null,null,null,null,null,null,null,null,null,null,null,null,0]
["",null,null,null,null,null,null,null,null,null,null,null,null,null,null,null,null,null,null,0]
["",null,null,null,null,null,null,null,null,null,null,null,null,null,null,null,null,null,null,0]
["",null,null,null,null,null,null,null,null,null,null,null,null,null,null,null,null,null,null,0]
["",null,null,null,null,null,null,null,null,null,null,null,null,null,null,null,null,null,null,0]
["",null,null,null,null,null,null,null,null,null,null,null,null,null,null,null,null,null,null,{"$f":"+O188*Q188","v":0}]
["",null,null,null,null,null,null,null,null,null,null,null,null,null,null,null,null,null,null,0]
["",null,null,null,null,null,null,null,null,null,null,null,null,null,null,null,null,null,null,0]
["",null,null,null,null,null,null,null,null,null,null,null,null,null,null,null,null,null,null,0]
["",null,null,null,null,null,null,null,null,null,null,null,null,null,null,null,null,null,null,0]
["",null,null,null,null,null,null,null,null,null,null,null,null,null,null,null,null,null,null,0]
["",null,null,null,null,null,null,null,null,null,null,null,null,null,null,null,null,null,null,0]
["",null,null,null,null,null,null,null,null,null,null,null,null,null,null,null,null,null,null,0]
["",null,null,null,null,null,null,null,null,null,null,null,null,null,null,null,null,null,null,0]
["",null,null,null,null,null,null,null,null,null,null,null,null,null,null,null,null,null,null,0]
[{"$f":"IF(M198<>\"\",A197+1,\"\")","v":""},null,null,null,null,null,null,null,null,null,null,null,null,null,null,null,null,null,null,0]
["",null,null,null,null,null,null,null,null,null,null,null,null,null,null,null,null,null,null,0]
["",null,null,null,null,null,null,null,null,null,null,null,null,null,null,null,null,null,null,0]
["",null,null,null,null,null,null,null,null,null,null,null,null,null,null,null,null,null,null,0]
["",null,null,null,null,null,null,null,null,null,null,null,null,null,null,null,null,null,null,0]
["",null,null,null,null,null,null,null,null,null,null,null,null,null,null,null,null,null,null,0]
["",null,null,null,null,null,null,null,null,null,null,null,null,null,null,null,null,null,null,0]
["",null,null,null,null,null,null,null,null,null,null,null,null,null,null,null,null,null,null,0]
["",null,null,null,null,null,null,null,null,null,null,null,null,null,null,null,null,null,null,0]
["",null,null,null,null,null,null,null,null,null,null,null,null,null,null,null,null,null,null,0]
["",null,null,null,null,null,null,null,null,null,null,null,null,null,null,null,null,null,null,0]
["",null,null,null,null,null,null,null,null,null,null,null,null,null,null,null,null,null,null,0]
["",null,null,null,null,null,null,null,null,null,null,null,null,null,null,null,null,null,null,0]
["",null,null,null,null,null,null,null,null,null,null,null,null,null,null,null,null,null,null,0]
["",null,null,null,null,null,null,null,null,null,null,null,null,null,null,null,null,null,null,0]
["",null,null,null,null,null,null,null,null,null,null,null,null,null,null,null,null,null,null,0]
["",null,null,null,null,null,null,null,null,null,null,null,null,null,null,null,null,null,null,0]
["",null,null,null,null,null,null,null,null,null,null,null,null,null,null,null,null,null,null,0]
["",null,null,null,null,null,null,null,null,null,null,null,null,null,null,null,null,null,null,0]
["",null,null,null,null,null,null,null,null,null,null,null,null,null,null,null,null,null,null,0]
["",null,null,null,null,null,null,null,null,null,null,null,null,null,null,null,null,null,null,0]
["",null,null,null,null,null,null,null,null,null,null,null,null,null,null,null,null,null,null,0]
["",null,null,null,null,null,null,null,null,null,null,null,null,null,null,null,null,null,null,0]
["",null,null,null,null,null,null,null,null,null,null,null,null,null,null,null,null,null,null,0]
["",null,null,null,null,null,null,null,null,null,null,null,null,null,null,null,null,null,null,0]
["",null,null,null,null,null,null,null,null,null,null,null,null,null,null,null,null,null,null,0]
["",null,null,null,null,null,null,null,null,null,null,null,null,null,null,null,null,null,null,0]
["",null,null,null,null,null,null,null,null,null,null,null,null,null,null,null,null,null,null,0]
["",null,null,null,null,null,null,null,null,null,null,null,null,null,null,null,null,null,null,0]
["",null,null,null,null,null,null,null,null,null,null,null,null,null,null,null,null,null,null,0]
["",null,null,null,null,null,null,null,null,null,null,null,null,null,null,null,null,null,null,0]
["",null,null,null,null,null,null,null,null,null,null,null,null,null,null,null,null,null,null,0]
["",null,null,null,null,null,null,null,null,null,null,null,null,null,null,null,null,null,null,0]
["",null,null,null,null,null,null,null,null,null,null,null,null,null,null,null,null,null,null,0]
["",null,null,null,null,null,null,null,null,null,null,null,null,null,null,null,null,null,null,0]
["",null,null,null,null,null,null,null,null,null,null,null,null,null,null,null,null,null,null,0]
["",null,null,null,null,null,null,null,null,null,null,null,null,null,null,null,null,null,null,0]
["",null,null,null,null,null,null,null,null,null,null,null,null,null,null,null,null,null,null,0]
["",null,null,null,null,null,null,null,null,null,null,null,null,null,null,null,null,null,null,0]

{"sheet":"embt1","index":1,"n_rows":17,"n_cols":18,"rows_kept":17,"cut":false,"hidden":false,"merged":[[0,1,0,2]]}
[377,"embt1",null,2023,null,null,null,null,null,null,"عدد اليوميات",{"$f":"SUBTOTAL(9,L5:L144)","v":0},"قيمة الاعمال",{"$f":"SUBTOTAL(9,N5:N144)","v":0},null,{"$f":"SUBTOTAL(9,P5:P56)","v":0},{"$f":"SUBTOTAL(9,Q5:Q56)","v":0},{"$f":"P1+P4-Q1-Q4","v":0}]
[]
["التاريخ","الحركة /رقم القيد","رقم الشيك","البيــان","اسم المشروع","رقم العقد","بند الاعمال","بداية الاعمال","نهاية الاعمال","سعر البند بالعقد","الوحدة","الكمية","السعر","قيمة المستخلص","رقم المستخلص","مدين","دائن","رصيـد"]
[null,null,null,"2023-01-01",null,null,null,null,null,null,null,null,null,null,null,{"$f":"'[1]ارصده المقاولين'!K159","v":0},{"$f":"'[1]ارصده المقاولين'!L159","v":0}]
[null,null,null,null,"مشروع اعمال مجمع الثلاجات البطاطس محطة الفرز و التعبئة /2023",null,null,null,null,"-",null,null,null,null,null,null,null,{"$f":"R4+P5-Q5","v":0}]
[null,null,null,null,"مشروع اعمال مجمع الثلاجات البطاطس محطة الفرز و التعبئة /2023",null,null,null,null,"-",null,null,null,null,null,null,null,{"$f":"R5+P6-Q6","v":0}]
[null,null,null,null,"مشروع اعمال مجمع الثلاجات البطاطس محطة الفرز و التعبئة /2023",null,null,null,null,"-",null,null,null,null,null,null,null,{"$f":"R6+P7-Q7","v":0}]
[null,null,null,null,"مشروع اعمال مجمع الثلاجات البطاطس محطة الفرز و التعبئة /2023",null,null,null,null,"-",null,null,null,null,null,null,null,{"$f":"R7+P8-Q8","v":0}]
[null,null,null,null,null,null,null,null,null,"-",null,null,null,null,null,null,null,{"$f":"R8+P9-Q9","v":0}]
[null,null,null,null,null,null,null,null,null,null,null,null,null,null,null,null,null,0]
[null,null,null,null,null,null,null,null,null,"-",null,null,null,null,null,null,null,0]
[null,null,null,null,null,null,null,null,null,null,null,null,null,null,null,null,null,0]
[null,null,null,null,null,null,null,null,null,"-",null,null,null,null,null,null,null,0]
[null,null,null,null,null,null,null,null,null,null,null,null,null,null,null,null,null,0]
[null,null,null,null,null,null,null,null,null,"-",null,null,null,null,null,null,null,0]
[null,null,null,null,null,null,null,null,null,null,null,null,null,null,null,null,null,0]
[null,null,null,null,null,null,null,null,null,"-",null,null,null,null,null,null,null,0]

{"sheet":"toutal","index":2,"n_rows":297,"n_cols":20,"rows_kept":297,"cut":false,"hidden":false,"merged":[[0,1,1,1],[0,2,1,2],[0,3,1,3],[0,4,1,4]]}
[null,"اسم المقاول",{"$f":"+محمد.سميرابراهيم!M3","v":"مدين"},{"$f":"+محمد.سميرابراهيم!N3","v":"دائن"},{"$f":"+محمد.سميرابراهيم!O3","v":"رصيـد"}]
[null,null,null,null,null,null,null,null,null,null,null,null,null,null,null,null,null,null,null,"hakan"]
["journal",{"$f":"IFERROR(INDIRECT(A3&\"!b1\"),\"\")","v":0},0,{"$f":"IFERROR(INDIRECT(A3&\"!n1\"),\"\")","v":0},{"$f":"+D3-C3","v":0},null,null,null,null,null,null,null,null,null,null,null,null,null,null,"hakan1"]
["embt1",{"$f":"IFERROR(INDIRECT(A4&\"!b1\"),\"\")","v":"embt1"},{"$f":"IFERROR(INDIRECT(A4&\"!p1\"),\"\")","v":0},{"$f":"IFERROR(INDIRECT(A4&\"!q1\"),\"\")","v":0},{"$f":"IF(B4<>\"\",D4-C4,\"\")","v":0},null,null,null,null,null,null,null,null,null,null,null,null,null,null,"hakan5"]
["محمد.سميرابراهيم","محمد سمير ابراهيم أحمد",{"$f":"IFERROR(INDIRECT(A5&\"!p1\"),\"\")","v":0},{"$f":"IFERROR(INDIRECT(A5&\"!q1\"),\"\")","v":0},{"$f":"IF(B5<>\"\",D5-C5,\"\")","v":0},null,null,null,null,null,null,null,null,null,null,null,null,null,null,"hakan6"]
["احمدثابت","أحمد ثابت عبد العزيز تركي",36180,36180,0,null,null,null,null,null,null,null,null,null,null,null,null,null,null,"hakan7"]
["يثرب","شركة يثرب للهندسة و المقاولات",65070549.039999999,5739081,-59331468.039999999,null,null,null,null,null,null,null,null,null,null,null,null,null,null,"hakan8"]
["عمرابوسريع","عمر ابو سريع موسي سرور",1179163.2,980052.00000000012,-199111.19999999984,null,null,null,null,null,null,null,null,null,null,null,null,null,null,"hakan9"]
["اجرولايف","شركة أجرولايف للمقاولات و التوريدات",3782563,0,-3782563,null,null,null,null,null,null,null,null,null,null,null,null,null,null,"hakan10"]
["الصرح","شركة الصرح للمقاولات و التوريدات",{"$f":"IFERROR(INDIRECT(A10&\"!p1\"),\"\")","v":3119728},{"$f":"IFERROR(INDIRECT(A10&\"!q1\"),\"\")","v":1982654},-1137074]
["رمضان.عبد.الحكيم_محمد","رمضان عبد الحكيم محمد حسن",{"$f":"IFERROR(INDIRECT(A11&\"!n1\"),\"\")","v":168915},{"$f":"IFERROR(INDIRECT(A11&\"!n1\"),\"\")","v":168915},0]
["فرج.كمال.محمود.فرج.هلال","فرج كمال محمود فرج هلال",0,0,0]
["محمد.سامى.المشد.فيوتشر","محمد سامى المشد - فيوتشر للاستثمار",273240,273240,0]
["وائل.فوزى.يونيفرسال","وائل فوزي ابراهيم محمد اسماعيل- يونيفرسال",30698588,15127110,-15571478]
["محمد.احمد.فاروق","محمد احمد فاروق السيد",{"$f":"IFERROR(INDIRECT(A15&\"!n1\"),\"\")","v":0},{"$f":"IFERROR(INDIRECT(A15&\"!o1\"),\"\")","v":0},0]
["ستون.احمد.عبد.المنعم","ستون - احمد عبد المنعم",{"$f":"IFERROR(INDIRECT(A16&\"!n1\"),\"\")","v":218550},{"$f":"IFERROR(INDIRECT(A16&\"!o1\"),\"\")","v":218550},0]
["محمود.لطفى.محمود.عبد.البارى","محمود لطفي محمود عبد الباري",-22000,0,22000]
["مصنع.الفنية.للخراطة.شمندى","مصنع.الفنية.للخراطة.شمندى",1030000,637200,-392800]
["بيومى.أنور.بيومى.فرج","بيومى.أنور.بيومى.فرج",778000,749194.3,-28805.699999999953]
["شركة.جيسكو.للتاريض","شركة.جيسكو.للتاريض",1588595,1748850,160255]
["حسين.محسن.احمد","حسين.محسن.احمد",989930,990920,990]
["خالد.فريد.محمد","خالد.فريد.محمد",180000,0,-180000]
["خليفه.فرغلى.عبدالحميد","خليفه.فرغلى.عبدالحميد",1099200,1114795.9000000001,15595.90000000014]
["سيد.احمد.ذكى","سيد.احمد.ذكى",83700,83742.5,42.5]
["شركة.الاتحاد.شريف.معوض","شركة.الاتحاد.شريف.معوض",179950,1470552.35,1290602.3500000001]
["شركة.الصفا.سيزر.مان.لفت","شركة.الصفا.سيزر.مان.لفت",0,70842.990000000005,70842.990000000005]
["صبحى.السيد.عبد.العزيز.بيومى","صبحى.السيد.عبد.العزيز.بيومى",23733,23773.4,40.400000000001455]
["شوقى.سيد.عبده","شوقى.سيد.عبده",473824,306364,-167460]
["شركة.ماستر.بيلدرز","شركة.ماستر.بيلدرز",2303945,2045970,-257975]
[null,"","","",""]
[null,"","","",""]
[null,"","","",""]
[null,"","","",""]
[null,"","","",""]
[null,"","","",""]
[null,"","","",""]
[null,"","","",""]
[null,"","","",""]
[null,"","","",""]
[null,"","","",""]
[null,"","","",""]
[null,"","","",""]
[null,"","","",""]
[null,"","","",""]
[null,"","","",""]
[null,"","","",""]
[null,"","","",""]
[null,"","","",""]
[null,"","","",""]
[null,"","","",""]
[null,"","","",""]
[null,"","","",""]
[null,"","","",""]
[null,"","","",""]
[null,"","","",""]
[null,"","","",""]
[null,"","","",""]
[null,"","","",""]
[null,"","","",""]
[null,"","","",""]
[null,"","","",""]
[null,"","","",""]
[null,"","","",""]
[null,"","","",""]
[null,"","","",""]
[null,"","","",""]
[null,"","","",""]
[null,{"$f":"IFERROR(INDIRECT(A68&\"!b1\"),\"\")","v":""},"","",""]
[null,"",{"$f":"IFERROR(INDIRECT(A69&\"!p1\"),\"\")","v":""},{"$f":"IFERROR(INDIRECT(A69&\"!q1\"),\"\")","v":""},{"$f":"IF(B69<>\"\",D69-C69,\"\")","v":""}]
[null,"","","",""]
[null,"","","",""]
[null,"","","",""]
[null,"","","",""]
[null,"","","",""]
[null,"","","",""]
[null,"","","",""]
[null,"","","",""]
[null,"","","",""]
[null,"","","",""]
[null,"","","",""]
[null,"","","",""]
[null,"","","",""]
[null,"","","",""]
[null,"","","",""]
[null,"","","",""]
[null,"","","",""]
[null,"","","",""]
[null,"","","",""]
[null,"","","",""]
[null,"","","",""]
[null,"","","",""]
[null,"","","",""]
[null,"","","",""]
[null,"","","",""]
[null,"","","",""]
[null,"","","",""]
[null,"","","",""]
[null,"","","",""]
[null,"","","",""]
[null,"","","",""]
[null,"","","",""]
[null,"","","",""]
[null,"","","",""]
[null,"","","",""]
[null,"","","",""]
[null,"","","",""]
[null,"","","",""]
[null,"","","",""]
[null,"","","",""]
[null,"","","",""]
[null,"","","",""]
[null,"","","",""]
[null,"","","",""]
[null,"","","",""]
[null,"","","",""]
[null,"","","",""]
[null,"","","",""]
[null,"","","",""]
[null,"","","",""]
[null,"","","",""]
[null,"","","",""]
[null,"","","",""]
[null,"","","",""]
[null,"","","",""]
[null,"","","",""]
[null,"","","",""]
[null,"","","",""]
[null,"","","",""]
[null,"","","",""]
[null,"","","",""]
[null,"","","",""]
[null,{"$f":"IFERROR(INDIRECT(A132&\"!b1\"),\"\")","v":""},"","",""]
[null,"",{"$f":"IFERROR(INDIRECT(A133&\"!p1\"),\"\")","v":""},{"$f":"IFERROR(INDIRECT(A133&\"!q1\"),\"\")","v":""},{"$f":"IF(B133<>\"\",D133-C133,\"\")","v":""}]
[null,"","","",""]
[null,"","","",""]
[null,"","","",""]
[null,"","","",""]
[null,"","","",""]
[null,"","","",""]
[null,"","","",""]
[null,"","","",""]
[null,"","","",""]
[null,"","","",""]
[null,"","","",""]
[null,"","","",""]
[null,"","","",""]
[null,"","","",""]
[null,"","","",""]
[null,"","","",""]
[null,"","","",""]
[null,"","","",""]
[null,"","","",""]
[null,"","","",""]
[null,"","","",""]
[null,"","","",""]
[null,"","","",""]
[null,"","","",""]
[null,"","","",""]
[null,"","","",""]
[null,"","","",""]
[null,"","","",""]
[null,"","","",""]
[null,"","","",""]
[null,"","","",""]
[null,"","","",""]
[null,"","","",""]
[null,"","","",""]
[null,"","","",""]
[null,"","","",""]
[null,"","","",""]
[null,"","","",""]
[null,"","","",""]
[null,"","","",""]
[null,"","","",""]
[null,"","","",""]
[null,"","","",""]
[null,"","","",""]
[null,"","","",""]
[null,"","","",""]
[null,"","","",""]
[null,"","","",""]
[null,"","","",""]
[null,"","","",""]
[null,"","","",""]
[null,"","","",""]
[null,"","","",""]
[null,"","","",""]
[null,"","","",""]
[null,"","","",""]
[null,"","","",""]
[null,"","","",""]
[null,"","","",""]
[null,"","","",""]
[null,"","","",""]
[null,"","","",""]
[null,{"$f":"IFERROR(INDIRECT(A196&\"!b1\"),\"\")","v":""},"","",""]
[null,"",{"$f":"IFERROR(INDIRECT(A197&\"!p1\"),\"\")","v":""},{"$f":"IFERROR(INDIRECT(A197&\"!q1\"),\"\")","v":""},{"$f":"IF(B197<>\"\",D197-C197,\"\")","v":""}]
[null,"","","",""]
[null,"","","",""]
[null,"","","",""]
[null,"","","",""]
[null,"","","",""]
[null,"","","",""]
[null,"","","",""]
[null,"","","",""]
[null,"","","",""]
[null,"","","",""]
[null,"","","",""]
[null,"","","",""]
[null,"","","",""]
[null,"","","",""]
[null,"","","",""]
[null,"","","",""]
[null,"","","",""]
[null,"","","",""]
[null,"","","",""]
[null,"","","",""]
[null,"","","",""]
[null,"","","",""]
[null,"","","",""]
[null,"","","",""]
[null,"","","",""]
[null,"","","",""]
[null,"","","",""]
[null,"","","",""]
[null,"","","",""]
[null,"","","",""]
[null,"","","",""]
[null,"","","",""]
[null,"","","",""]
[null,"","","",""]
[null,"","","",""]
[null,"","","",""]
[null,"","","",""]
[null,"","","",""]
[null,"","","",""]
[null,"","","",""]
[null,"","","",""]
[null,"","","",""]
[null,"","","",""]
[null,"","","",""]
[null,"","","",""]
[null,"","","",""]
[null,"","","",""]
[null,"","","",""]
[null,"","","",""]
[null,"","","",""]
[null,"","","",""]
[null,"","","",""]
[null,"","","",""]
[null,"","","",""]
[null,"","","",""]
[null,"","","",""]
[null,"","","",""]
[null,"","","",""]
[null,"","","",""]
[null,"","","",""]
[null,"","","",""]
[null,"","","",""]
[null,{"$f":"IFERROR(INDIRECT(A260&\"!b1\"),\"\")","v":""},"","",""]
[null,"",{"$f":"IFERROR(INDIRECT(A261&\"!p1\"),\"\")","v":""},{"$f":"IFERROR(INDIRECT(A261&\"!q1\"),\"\")","v":""},{"$f":"IF(B261<>\"\",D261-C261,\"\")","v":""}]
[null,"","","",""]
[null,"","","",""]
[null,"","","",""]
[null,"","","",""]
[null,"","","",""]
[null,"","","",""]
[null,"","","",""]
[null,"","","",""]
[null,"","","",""]
[null,"","","",""]
[null,"","","",""]
[null,"","","",""]
[null,"","","",""]
[null,"","","",""]
[null,"","","",""]
[null,"","","",""]
[null,"","","",""]
[null,"","","",""]
[null,"","","",""]
[null,"","","",""]
[null,"","","",""]
[null,"","","",""]
[null,"","","",""]
[null,"","","",""]
[null,"","","",""]
[null,"","","",""]
[null,"","","",""]
[null,"","","",""]
[null,"","","",""]
[null,"","","",""]
[null,"","","",""]
[null,"","","",""]
[null,"","","",""]
[null,"","","",""]
[null,"","","",""]
[null,"","","",""]

{"sheet":"محمد.سميرابراهيم","index":3,"n_rows":20,"n_cols":15,"rows_kept":20,"cut":false,"hidden":false,"merged":[]}
[13,"محمد سمير ابراهيم أحمد",null,{"$f":"'[1]1'!$D$1","v":2023},null,null,null,null,null,null,null,null,{"$f":"SUBTOTAL(9,M4:M53)","v":167312},{"$f":"SUBTOTAL(9,N4:N53)","v":167312},{"$f":"M1-N1","v":0}]
[]
["التاريخ","الحركة /رقم القيد","رقم الشيك","البيــان","اسم المشروع","رقم العقد","بند الاعمال","الوحدة","الكمية","السعر","القيمة","رقم المستخلص","مدين","دائن","رصيـد"]
[null,null,null,{"$f":"'[1]1'!$D$4","v":"رصيد 2023/1/1"},null,null,null,null,null,null,null,null,{"$f":"'[1]ارصده المقاولين'!K20","v":0},{"$f":"'[1]ارصده المقاولين'!L20","v":0},{"$f":"M4-N4","v":0}]
["2023-10-18","أعمال مستحقة","مستخلصات","مستخلص معده لودر 910 عدد 13 يومية عن الفترة من 16/09/2023 و الي 30/09/2023","مشروع اعمال مجمع الثلاجات البطاطس محطة الفرز و التعبئة /2023","-","لودر 910","يوميات",13,1154,15000,"مذكرة",null,{"$f":"K5","v":15000},{"$f":"O4+M5-N5","v":-15000}]
["2023-09-24","دفعات نقدية","1305","دفعة نقدية من عهدة الموقع","مشروع اعمال مجمع الثلاجات البطاطس محطة الفرز و التعبئة /2023","-","-","-","-","-","-","-",2000,null,-13000]
["2023-10-01","دفعات نقدية","1338","دفعة نقدية من عهدة الموقع","مشروع اعمال مجمع الثلاجات البطاطس محطة الفرز و التعبئة /2023","-","-","-","-","-","-","-",1000,null,-12000]
["2023-11-01","أعمال مستحقة","مستخلصات","مستخلص معده لودر 910 عدد 13 يومية عن الفترة من 01/10/2023 و الي 31/10/2023","مشروع اعمال مجمع الثلاجات البطاطس محطة الفرز و التعبئة /2023","-","لودر 910","يوميات",26,1154,30000,"مذكرة",null,{"$f":"K8","v":30000},-42000]
["2023-11-16","دفعات بنكية","78641839","دفعه للمقاول بشيك مسحوب على بنك مصر","مشروع اعمال مجمع الثلاجات البطاطس محطة الفرز و التعبئة /2023",null,null,null,null,null,null,null,42000,null,0]
["2023-11-30","أعمال مستحقة","مستخلصات","مستخلص جاري 3 معده لودر 910 عدد 26 يومية عن الفترة من 01/11/2023 و الي 30/11/2023","مشروع اعمال مجمع الثلاجات البطاطس محطة الفرز و التعبئة /2023","-","لودر 910","يوميات",26,1154,30000,"جاري 3",null,{"$f":"K10","v":30000},-30000]
["2023-12-04","دفعات نقدية","1680","دفعة نقدية من عهدة محاسب الموقع / وليد سامي سلفة من مستخلص الشهر","مشروع اعمال مجمع الثلاجات البطاطس محطة الفرز و التعبئة /2023","-","-","-","-","-","-","-",200,null,-29800]
["2023-12-07","دفعات بنكية","79689982","دفعه للمقاول بشيك مسحوب على بنك مصر","مشروع اعمال مجمع الثلاجات البطاطس محطة الفرز و التعبئة /2023",null,null,null,null,null,null,null,30000,null,200]
["2023-12-25","دفعات نقدية","1689","دفعة نقدية من عهدة محاسب الموقع / وليد سامي سلفة من مستخلص الشهر","مشروع اعمال مجمع الثلاجات البطاطس محطة الفرز و التعبئة /2023","-","-","-","-","-","-","-",200,null,400]
["2023-12-31","أعمال مستحقة","مستخلصات","مستخلص جاري 4 معده لودر 910 عدد 26 يومية عن الفترة من 01/12/2023 و الي 31/12/2023","مشروع اعمال مجمع الثلاجات البطاطس محطة الفرز و التعبئة /2023","-","لودر 910","يوميات",26,1154,30000,"جاري 4",null,{"$f":"K14","v":30000},-29600]
["2024-01-09","دفعات بنكية","95158747","دفعه للمقاول بشيك مسحوب على بنك مصر","مشروع اعمال مجمع الثلاجات البطاطس محطة الفرز و التعبئة /2023",null,null,null,null,null,null,null,29800,null,200]
["2024-01-31","أعمال مستحقة","مستخلصات","مستخلص جاري 5 / توريد معده لودر 910 عدد 26 يومية + 2 يوم اصافى * 1154 ج / من 01-01-2024 و الي 31-1-2024","مشروع اعمال مجمع الثلاجات البطاطس محطة الفرز و التعبئة /2023",null,"لودر 910","يوميات",28,1154,{"$f":"J16*I16","v":32312},"جاري 5",null,32312,-32112]
["2024-02-06","دفعات بنكية","95703736","دفعه للمقاول بشيك مسحوب على بنك مصر","مشروع اعمال مجمع الثلاجات البطاطس محطة الفرز و التعبئة /2023",null,null,null,null,null,null,null,32314,null,202]
["2024-02-29","دفعات نقدية",null,"عهده من محاسب الموقع","مشروع اعمال مجمع الثلاجات البطاطس محطة الفرز و التعبئة /2023",null,null,null,null,null,null,null,1000,null,1202]
["2024-02-29","أعمال مستحقة","مستخلصات","مستخلص جاري 6 /  محمد سمير ابراهيم احمد / توريد معده لودر 910 عدد 26 يومية  * 1154 ج / من 01-02-2024 و الي 29-02-2024","مشروع اعمال مجمع الثلاجات البطاطس محطة الفرز و التعبئة /2023",null,"لودر 910","يوميات",26,{"$f":"K19/I19","v":1153.8461538461538},30000,"جاري 6",null,30000,-28798]
["2024-03-25","دفعات بنكية","96337207","دفعه للمقاول بشيك مسحوب على بنك مصر بعد الغاء شيك رقم 96337201 بنفس القيمه","مشروع اعمال مجمع الثلاجات البطاطس محطة الفرز و التعبئة /2023",null,null,null,null,null,null,null,28798,null,0]

{"sheet":"احمدثابت","index":4,"n_rows":7,"n_cols":18,"rows_kept":7,"cut":false,"hidden":false,"merged":[[0,1,0,2]]}
[328,"أحمد ثابت عبد العزيز تركي",null,2023,null,null,null,null,null,null,null,null,null,null,null,{"$f":"SUBTOTAL(9,P4:P76)","v":36180},{"$f":"SUBTOTAL(9,Q4:Q76)","v":36180},{"$f":"P1-Q1","v":0}]
[]
["التاريخ","الحركة /رقم القيد","رقم الشيك","البيــان","اسم المشروع","رقم العقد","بند الاعمال","كمية العقد","سعر البند","قيمة العقد","الوحده","الكمية","السعر","قيمة المستخلص","رقم المستخلص","مدين","دائن","رصيـد"]
[null,null,null,"2023-01-01",null,null,null,null,null,null,null,null,null,null,null,{"$f":"'[1]ارصده المقاولين'!K159","v":0},{"$f":"'[1]ارصده المقاولين'!L159","v":0}]
["2023-10-08","استحقاق","مذكرة أعمال","مذكرة استحقاق للمقاول أحمد ثابت تركي بقيمة 77 ساعة قيمة الساعة 370 جنيه لمعدة لودر","مشروع اعمال مجمع الثلاجات البطاطس محطة الفرز و التعبئة /2023","لا يوجد","معده لودر","-","-","-","ساعة",77,370,{"$f":"M5*L5","v":28490},"مذكرة",null,{"$f":"N5","v":28490},{"$f":"R4+P5-Q5","v":-28490}]
["2023-10-17","استحقاق","مذكرة أعمال","مذكرة استحقاق للمقاول أحمد ثابت تركي بقيمة 5 يومية قيمة الساعة 1538 جنيه لمعدة هراس","مشروع اعمال مجمع الثلاجات البطاطس محطة الفرز و التعبئة /2023","لا يوجد","هراس","-","-","-","يومية",5,1538,{"$f":"M6*L6","v":7690},"مذكرة",null,{"$f":"N6","v":7690},{"$f":"R5+P6-Q6","v":-36180}]
["2023-11-20","دفعات بنكية ","78873099","دفعه بنكيه للمقاول بشيك مسحوب على بنك مصر ","مشروع اعمال مجمع الثلاجات البطاطس محطة الفرز و التعبئة /2023",null,null,null,null,null,null,null,null,null,null,36180,null,{"$f":"R6+P7-Q7","v":0}]

{"sheet":"يثرب","index":5,"n_rows":62,"n_cols":19,"rows_kept":62,"cut":false,"hidden":false,"merged":[[0,1,0,2]]}
[350,"شركة يثرب للهندسة و المقاولات",null,"01.01.2023",null,null,null,null,null,null,null,null,null,null,null,{"$f":"SUBTOTAL(9,P4:P150)","v":65070549.039999999},{"$f":"SUBTOTAL(9,Q4:Q150)","v":5739081},{"$f":"P1-Q1","v":59331468.039999999}]
[]
["التاريخ","الحركة /رقم القيد","رقم الشيك","البيــان","اسم المشروع","رقم العقد","بند الاعمال","كمية العقد","سعر البند","قيمة العقد","الوحدة","الكمية المنفذة","السعر","قيمة المستخلص","رقم المستخلص","مدين","دائن","رصيـد"]
[null,null,null,2023,null,null,null,null,null,null,null,null,null,null,null,{"$f":"'[1]ارصده المقاولين'!K159","v":0},{"$f":"'[1]ارصده المقاولين'!L159","v":0}]
["2023-09-04","دفعات بنكية","77714704","دفعة للمقاول بشيك بنكي مسحوب على بنك مصر","مشروع اعمال مجمع الثلاجات البطاطس محطة الفرز و التعبئة /2023","-","-","-","-","-","-","-","-","-","-",1000000,null,{"$f":"R4+P5-Q5","v":1000000}]
["2023-09-18","دفعات بنكية","تحويل بنكي","تحويل بنكي من حساب بنك مصر","مشروع اعمال مجمع الثلاجات البطاطس محطة الفرز و التعبئة /2023","-","-","-","-","-","-","-","-","-","-",1000000,null,{"$f":"R5+P6-Q6","v":2000000}]
["2023-09-30","خصم","مذكرة خصم","مذكرة خصم نقلات مياه 19 نقلة يومية عن الفترة ممن 01/09/2023 و الي 30/09/2023","مشروع اعمال مجمع الثلاجات البطاطس محطة الفرز و التعبئة /2023","-","-","-","-","-","-","-","-","-","-",2449,null,{"$f":"R6+P7-Q7","v":2002449}]
["2023-09-30","خصم","مذكرة خصم","مذكرة خصم معدة لودر 910 *** عدد الساعات 3.75 عن الفترة من 01/09/2023 و الي 30/09/2023","مشروع اعمال مجمع الثلاجات البطاطس محطة الفرز و التعبئة /2023","-","-","-","-","-","-","-","-","-","-",678,null,2003127]
["2023-10-01","خصم","مذكرة خصم","مذكرة خصم على المقاول معدة لودر - عدد ساعات 5 ساعة سعر الساعة 370 جنيه","مشروع اعمال مجمع الثلاجات البطاطس محطة الفرز و التعبئة /2023","-","-","-","-","-","-","-","-","-","-",{"$f":"5*370","v":1850},null,2004977]
["2023-10-17","خصم","مذكرة خصم","مذكرة خصم على المقاول معدة هراس - عدد اليوميات 2 يومية سعر اليومية 1538 جنيه","مشروع اعمال مجمع الثلاجات البطاطس محطة الفرز و التعبئة /2023","-","-","-","-","-","-","-","-","-","-",3076,null,2008053]
["2023-10-29","دفعات بنكية","تحويل بنكي","تحويل بنكي من حساب الشركة ببنك أبو ظبي التجاري","مشروع اعمال مجمع الثلاجات البطاطس محطة الفرز و التعبئة /2023","-","-","-","-","-","-","-","-","-","-",3000000,null,5008053]
["2023-11-01","خصم","مذكرة خصم","مذكرة خصم نقلات مياه 25 نقلة يومية عن الفترة ممن 01/10/2023 و الي 31/10/2023","مشروع اعمال مجمع الثلاجات البطاطس محطة الفرز و التعبئة /2023","-","-","-","-","-","-","-","-","-","-",3871,null,5011924]
["2023-11-01","خصم","مذكرة خصم","مذكرة خصم معدة لودر 910 *** عدد الساعات 17 عن الفترة من 01/10/2023 و الي 31/10/2023","مشروع اعمال مجمع الثلاجات البطاطس محطة الفرز و التعبئة /2023","-","-","-","-","-","-","-","-","-","-",4215,null,5016139]
["2023-11-11","دفعات بنكية","تحويل بنكي","تحويل بنكي من حساب الشركة ببنك أبو ظبي التجاري","مشروع اعمال مجمع الثلاجات البطاطس محطة الفرز و التعبئة /2023",null,null,null,null,null,null,null,null,null,null,0,null,5016139]
["2023-11-16","دفعات بنكية","تحويل بنكي","تحويل بنكي من حساب الشركة ببنك أبو ظبي التجاري","مشروع اعمال مجمع الثلاجات البطاطس محطة الفرز و التعبئة /2023",null,null,null,null,null,null,null,null,null,null,5000000,null,10016139]
["2023-11-22","أعمال مستحقة","مستخلصات","مستخلص شراء 4.25 طن حديد تسليح *41500 جنيه /طن","مشروع اعمال مجمع الثلاجات البطاطس محطة الفرز و التعبئة /2023",null,null,null,null,null,null,null,null,null,null,null,{"$f":"4.25*41500","v":176375},9839764]
["2023-12-06","دفعات بنكية","تحويل بنكي","تحويل بنكي من حساب الشركة ببنك مصر ","مشروع اعمال مجمع الثلاجات البطاطس محطة الفرز و التعبئة /2023",null,null,null,null,null,null,null,null,null,null,250000,null,10089764]
["2023-11-30","خصم","مذكرة خصم","مذكرة خصم معدة لودر 910 *** عدد الساعات 21 عن الفترة من 01/11/2023 و الي 30/11/2023","مشروع اعمال مجمع الثلاجات البطاطس محطة الفرز و التعبئة /2023",null,null,null,null,null,null,null,null,null,null,5676,null,10095440]
["2023-11-30","خصم","اشعار خصم","اشعار خصم نقلات مياه 31 نقلة يومية عن الفترة ممن 01/11/2023 و الي 30/11/2023","مشروع اعمال مجمع الثلاجات البطاطس محطة الفرز و التعبئة /2023",null,null,null,null,null,null,null,null,null,null,5352,null,10100792]
["2023-12-12","دفعات بنكية","تحويل بنكي","تحويل بنكي من حساب الشركة ببنك مصر ","مشروع اعمال مجمع الثلاجات البطاطس محطة الفرز و التعبئة /2023",null,null,null,null,null,null,null,null,null,null,50000,null,10150792]
["2023-12-13","دفعات بنكية","تحويل بنكي","تحويل بنكي من حساب الشركة ببنك مصر ","مشروع اعمال مجمع الثلاجات البطاطس محطة الفرز و التعبئة /2023",null,null,null,null,null,null,null,null,null,null,2500000,null,12650792]
["2023-12-19","دفعات بنكية","تحويل بنكي","تحويل بنكي من حساب الشركة ببنك مصر ","مشروع اعمال مجمع الثلاجات البطاطس محطة الفرز و التعبئة /2023",null,null,null,null,null,null,null,null,null,null,2000000,null,14650792]
["2023-12-31","خصم","اشعار خصم","اشعار خصم نقلات مياه 69 نقلة  يومية * 158.93 جنيه  من 01/12/2023 و الي 31/12/2023 (مرفق بجاري 4 للمقاول رمضان عبد الحكيم محمد )","مشروع اعمال مجمع الثلاجات البطاطس محطة الفرز و التعبئة /2023",null,null,null,null,null,null,null,null,null,null,10966,null,14661758]
["2023-12-31","خصم","اشعار خصم","مذكرة خصم معدة لودر 910 *** عدد الساعات74 ساعه *209.82 جنيه من 01/12/2023 و الي 31/12/2023 ( مرفق بجاري 4 للمقاول محمد سمير ابراهيم )","مشروع اعمال مجمع الثلاجات البطاطس محطة الفرز و التعبئة /2023",null,null,null,null,null,null,null,null,null,null,15527,null,14677285]
["2024-01-03","دفعات بنكية","تحويل بنكي","تحويل بنكي من حساب الشركة ببنك مصر ","مشروع اعمال مجمع الثلاجات البطاطس محطة الفرز و التعبئة /2023",null,null,null,null,null,null,null,null,null,null,2500000,null,17177285]
["2024-01-04","دفعات بنكية","تحويل بنكي","تحويل بنكي من حساب الشركة ببنك مصر ","مشروع اعمال مجمع الثلاجات البطاطس محطة الفرز و التعبئة /2023",null,null,null,null,null,null,null,null,null,null,5000000,null,22177285]
["2024-01-08","دفعات بنكية","تحويل بنكي","تحويل بنكي من حساب الشركة ببنك مصر ","مشروع اعمال مجمع الثلاجات البطاطس محطة الفرز و التعبئة /2023",null,null,null,null,null,null,null,null,null,null,2500000,null,24677285]
["2024-01-15","دفعات بنكية","تحويل بنكي","تحويل بنكي من حساب الشركة ببنك مصر ","مشروع اعمال مجمع الثلاجات البطاطس محطة الفرز و التعبئة /2023",null,null,null,null,null,null,null,null,null,null,4000000,null,28677285]
["2024-02-01","دفعات بنكية","تحويل بنكي","تحويل بنكي من حساب الشركة ببنك مصر ","مشروع اعمال مجمع الثلاجات البطاطس محطة الفرز و التعبئة /2023",null,null,null,null,null,null,null,null,null,null,2500000,null,31177285]
["2024-01-31","خصم","اشعار خصم","اشعار خصم نقلات مياه 124 نقلة  يومية * 119.1 جنيه  من 01-01-2024 و الي 31-01-2024 (مرفق بجاري 5 للمقاول رمضان عبد الحكيم محمد )","مشروع اعمال مجمع الثلاجات البطاطس محطة الفرز و التعبئة /2023",null,null,null,null,null,null,null,null,null,null,14768,null,31192053]
["2024-01-31","خصم","اشعار خصم","اشعار خصم معدة لودر 910 *** عدد الساعات 145 ساعه * 153.87 ج من 01-01-2024 الي 31-01-2024 ( مرفق بجاري 5 للمقاول محمد سمير ابراهيم )","مشروع اعمال مجمع الثلاجات البطاطس محطة الفرز و التعبئة /2023",null,null,null,null,null,null,null,null,null,null,22311,null,31214364]
["2024-01-20","اضافه","مذكرة اضافه","مذكرة استلام خامات تخصم من شركة الصرح عدد 3840 طوبة من شركة يثرب ( تضاف له ) بسعر 1400 ج/للالف","مشروع اعمال مجمع الثلاجات البطاطس محطة الفرز و التعبئة /2023",null,null,null,null,null,null,null,null,null,null,null,5376,31208988]
["2024-01-20","اضافه","مذكرة اضافه","مذكرة استلام خامات تخصم من شركة الصرح عدد 98 شيكاره من شركة يثرب ( تضاف له ) بسعر 160 ج/للشكاره","مشروع اعمال مجمع الثلاجات البطاطس محطة الفرز و التعبئة /2023",null,null,null,null,null,null,null,null,null,null,null,15680,31193308]
["2024-01-01","اضافه","مذكرة اضافه","مذكرة خصم على شركة ستون تضاف الى شركة يثرب عن مصاريف B2 ( عماله +نجارين + الهزاز + هليكوبتر +مواد +حداده +5هيلتى +مولد +عربيه نقل )","مشروع اعمال مجمع الثلاجات البطاطس محطة الفرز و التعبئة /2023",null,null,null,null,null,null,null,null,null,null,null,32500,31160808]
["2024-01-01","اضافه","مذكرة اضافه","مذكرة اعمال اضافيه تخصم على شركة فيوتشر وتضاف لشركة يثرب ( عماله 3300 ج + حداده 4200 ج + 2هيلتى 300 ج +مولد 450 ج +عربيه 1300 ج )","مشروع اعمال مجمع الثلاجات البطاطس محطة الفرز و التعبئة /2023",null,null,null,null,null,null,null,null,null,null,null,9550,31151258]
["2024-02-08","مذكره","مذكرة اضافه","مذكره خصم على المقاول ايمن شوقى لصالح شركة يثرب للهندسه م. مصطفى الشاذلى","مشروع اعمال مجمع الثلاجات البطاطس محطة الفرز و التعبئة /2023",null,null,null,null,null,null,null,null,null,null,null,80000,31071258,"قيد رقم 29 عند ثروت مشروع الفك"]
["2024-02-13","دفعات بنكية","تحويل بنكي","تحويل الي شركة اليثرب للمقاولات لسداد دفعه تم تحويلها الي المقاول ايمن شوقي سعيد مهدي السبعاوي مشروع فك وتركيب الصوب الزراعية ( الصوب الاسبانى ) باللاهون / 2023","مشروع اعمال مجمع الثلاجات البطاطس محطة الفرز و التعبئة /2023",null,null,null,null,null,null,null,null,null,null,80000,null,31151258]
["2024-02-06","دفعات بنكية","تحويل بنكي","تحويل بنكي من حساب الشركة ببنك مصر ","مشروع اعمال مجمع الثلاجات البطاطس محطة الفرز و التعبئة /2023",null,null,null,null,null,null,null,null,null,null,2500000,null,33651258]
["2024-03-03","دفعات بنكية","تحويل بنكي","تحويل بنكي من حساب الشركة ببنك مصر ","مشروع اعمال مجمع الثلاجات البطاطس محطة الفرز و التعبئة /2023",null,null,null,null,null,null,null,null,null,null,500000,null,34151258]
["2024-03-04","دفعات بنكية","تحويل بنكي","تحويل بنكي من حساب الشركة ببنك مصر ","مشروع اعمال مجمع الثلاجات البطاطس محطة الفرز و التعبئة /2023",null,null,null,null,null,null,null,null,null,null,1000000,null,35151258]
["2024-03-06","دفعات بنكية","تحويل بنكي","تحويل بنكي من حساب الشركة ببنك مصر ","مشروع اعمال مجمع الثلاجات البطاطس محطة الفرز و التعبئة /2023",null,null,null,null,null,null,null,null,null,null,500000,null,35651258]
["2024-03-14","دفعات بنكية","تحويل بنكي","تحويل بنكي من حساب الشركة ببنك مصر ","مشروع اعمال مجمع الثلاجات البطاطس محطة الفرز و التعبئة /2023",null,null,null,null,null,null,null,null,null,null,7000000,null,42651258]
["2024-03-14","دفعات بنكية","تحويل بنكي","تحويل بنكي من حساب الشركة ببنك مصر ","مشروع اعمال مجمع الثلاجات البطاطس محطة الفرز و التعبئة /2023",null,null,null,null,null,null,null,null,null,null,500000,null,43151258]
["2024-02-29","خصم","اشعار خصم","اشعار خصم نقلات مياه 99 نقلة  يومية * 147.24 جنيه  من 01-02-2024 و الي 29-02-2024 (مرفق بجاري 6 للمقاول رمضان عبد الحكيم محمد )","مشروع اعمال مجمع الثلاجات البطاطس محطة الفرز و التعبئة /2023",null,null,null,null,null,null,null,null,null,null,14577,null,43165835]
["2024-02-29","خصم","اشعار خصم","اشعار خصم معدة لودر 910 *** عدد الساعات 54 ساعه * 220.59 ج من 01-02-2024 الي 29-02-2024 ( مرفق بجاري 6 للمقاول محمد سمير ابراهيم )","مشروع اعمال مجمع الثلاجات البطاطس محطة الفرز و التعبئة /2023",null,null,null,null,null,null,null,null,null,null,11912,null,43177747]
["2024-03-27","دفعات بنكية","تحويل بنكي","تحويل بنكي من حساب الشركة ببنك مصر ","مشروع اعمال مجمع الثلاجات البطاطس محطة الفرز و التعبئة /2023",null,null,null,null,null,null,null,null,null,null,7500000,null,50677747]
["2024-04-08","دفعات بنكية","تحويل بنكي","تحويل بنكي من حساب الشركة ببنك مصر ","مشروع اعمال مجمع الثلاجات البطاطس محطة الفرز و التعبئة /2023",null,null,null,null,null,null,null,null,null,null,2000000,null,52677747]
["2024-03-30","خصم",null,"عدد42.58 س *322.31",null,null,null,null,null,null,null,null,null,null,null,13698,null,52691445]
["2024-03-30","خصم",null,"مياه 67*161.07",null,null,null,null,null,null,null,null,null,null,null,11176,null,52702621]
["2024-04-22",null,null,null,null,null,null,null,null,null,null,null,null,null,null,7000000,null,59702621]
["2024-05-20",null,null,null,null,null,null,null,null,null,null,null,null,null,null,1000000,null,60702621]
["2024-04-30",null,null,null,null,null,null,null,null,null,null,null,null,null,null,10792,null,60713413]
["2024-05-25",null,null,null,null,null,null,null,null,null,null,null,null,null,null,2500000,null,63213413]
["2024-06-12",null,null,null,null,null,null,null,null,null,null,null,null,null,null,200000,null,63413413]
["2024-06-22",null,null,null,null,null,null,null,null,null,null,null,null,null,null,75000,null,63488413]
["2024-05-31",null,null,null,null,null,null,null,null,null,null,null,null,null,null,12655.04,null,63501068.039999999]
["2024-07-17",null,null,null,null,null,null,null,null,null,null,null,null,null,null,250000,null,63751068.039999999]
["2024-07-22",null,null,null,null,null,null,null,null,null,null,null,null,null,null,1000000,null,64751068.039999999]
["2024-09-22",null,null,null,null,null,null,null,null,null,null,null,null,null,null,null,1630000,63121068.039999999]
["2024-09-22",null,null,null,null,null,null,null,null,null,null,null,null,null,null,null,988600,62132468.039999999]
["2024-09-22",null,null,null,null,null,null,null,null,null,null,null,null,null,null,null,2150000,59982468.039999999]
["2024-09-22",null,null,null,null,null,null,null,null,null,null,null,null,null,null,null,651000,59331468.039999999]

{"sheet":"عمرابوسريع","index":6,"n_rows":28,"n_cols":18,"rows_kept":28,"cut":false,"hidden":false,"merged":[[0,1,0,2]]}
[351,"عمر ابو سريع موسي سرور",null,2023,null,null,null,null,null,null,null,null,null,null,null,{"$f":"SUBTOTAL(9,P4:P36)","v":1179163.2},{"$f":"SUBTOTAL(9,Q4:Q36)","v":980052.00000000012},{"$f":"P1-Q1","v":199111.19999999984}]
[]
["التاريخ","الحركة /رقم القيد","رقم الشيك","البيــان","اسم المشروع","رقم العقد","بند الاعمال","كمية العقد","سعر البند","قيمة العقد","نسبة الانجاز","رقم الكلاستر","رقم الصوبة","قيمة المستخلص","رقم المستخلص","مدين","دائن","رصيـد"]
[null,null,null,"01.01.2023",null,null,null,null,null,null,null,null,null,null,null,{"$f":"'[1]ارصده المقاولين'!K159","v":0},{"$f":"'[1]ارصده المقاولين'!L159","v":0}]
["2023-09-26","خصم","مذكرة خصم","مذكرة خصم  مقابل توريد 20 طن أسمنت للمقاول","مشروع اعمال مجمع الثلاجات البطاطس محطة الفرز و التعبئة /2023","-","-","-","-","-","-","-","-","-","-",43000,null,{"$f":"R4+P5-Q5","v":43000}]
["2023-09-26","دفعات بنكية","تحويل بنكي","تحويل من حساب الشركة ببنك مصر ","مشروع اعمال مجمع الثلاجات البطاطس محطة الفرز و التعبئة /2023","-","-","-","-","-","-","-","-","-","-",250000,null,293000]
["2023-09-30","خصم","مذكرة خصم","مذكرة خصم عدد 18 نقلة *** عن الفترة من 01/09/2023 و الي 30/09/2023 ","مشروع اعمال مجمع الثلاجات البطاطس محطة الفرز و التعبئة /2023","-","-","-","-","-","-","-","-","-","-",2320,null,295320]
["2023-09-30","خصم","مذكرة خصم","مذكرة خصم معدة لودر 910 ** عد الساعات 31 ساعة ** عن الفترة من 01/09/2023 و الي 30/09/2023","مشروع اعمال مجمع الثلاجات البطاطس محطة الفرز و التعبئة /2023","-","-","-","-","-","-","-","-","-","-",5603,null,300923]
["2023-10-08","خصم","مذكرة خصم","مذكرة خصم على المقاول معدة لودر - عدد ساعات 8 ساعة سعر الساعة 370 جنيه","مشروع اعمال مجمع الثلاجات البطاطس محطة الفرز و التعبئة /2023","-","-","-","-","-","-","-","-","-","-",2960,null,303883]
["2023-10-27","دفعات بنكية","تحويل بنكي","تحويل من حساب الشركة ببنك مصر ","مشروع اعمال مجمع الثلاجات البطاطس محطة الفرز و التعبئة /2023","-","-","-","-","-","-","-","-","-","-",250000,null,553883]
["2023-11-01","خصم","مذكرة خصم","مذكرة خصم عدد 25 نقلة *** عن الفترة من 01/10/2023 و الي 31/10/2023 ","مشروع اعمال مجمع الثلاجات البطاطس محطة الفرز و التعبئة /2023","-","-","-","-","-","-","-","-","-","-",3871,null,557754]
["2023-11-01","خصم","مذكرة خصم","مذكرة خصم معدة لودر 910 ** عد الساعات 31 ساعة ** عن الفترة من 01/10/2023 و الي 31/10/2023","مشروع اعمال مجمع الثلاجات البطاطس محطة الفرز و التعبئة /2023","-","-","-","-","-","-","-","-","-","-",8431,null,566185]
["2023-11-09","دفعات بنكية","تحويل بنكي","تحويل من حساب الشركة ببنك مصر ","مشروع اعمال مجمع الثلاجات البطاطس محطة الفرز و التعبئة /2023","-","-","-","-","-","-","-","-","-","-",100000,null,666185]
["2023-11-30","خصم","مذكرة خصم","مذكرة خصم معدة لودر 910 ** عد الساعات 2 ساعة ** عن الفترة من 01/11/2023 و الي 30/11/2023","مشروع اعمال مجمع الثلاجات البطاطس محطة الفرز و التعبئة /2023",null,null,null,null,null,null,null,null,null,null,541,null,666726]
["2023-11-30","خصم","اشعار خصم","اشعار خصم عدد 4 نقلة *** عن الفترة من 01/11/2023 و الي 30/11/2023 ","مشروع اعمال مجمع الثلاجات البطاطس محطة الفرز و التعبئة /2023",null,null,null,null,null,null,null,null,null,null,691,null,667417]
["2023-11-19","اعمال مستحقه","مستخلصات","مستخلص جاري 1 / اجمالى اعمال B1 ","مشروع اعمال مجمع الثلاجات البطاطس محطة الفرز و التعبئة /2023","3&2023","اعمال B1",null,null,null,null,null,null,"821163",null,null,{"$f":"N16*90%","v":739046.70000000007},-71629.70000000007]
["2023-11-19","خصم","خصم","خصم قيمة 9152 طوبة من مستخلص جاري 1 * 1.35 جنيه","مشروع اعمال مجمع الثلاجات البطاطس محطة الفرز و التعبئة /2023","3&2023","اعمال B1",null,null,null,null,null,null,null,null,{"$f":"9152*1.35","v":12355.2},null,-59274.500000000073]
["2023-11-19","رد تامين","رد","اثبات رد تامين ال 10 % عن اعمال جاري 1 - اعمال B1 - بناء على تعليمان م / رمضان","مشروع اعمال مجمع الثلاجات البطاطس محطة الفرز و التعبئة /2023","3&2023","اعمال B1",null,null,null,null,null,null,null,null,null,82116.3,-141390.80000000008]
["2024-02-01","دفعات بنكية","95451438","دفعه للمقاول بشيك مسحوب على بنك مصر","مشروع اعمال مجمع الثلاجات البطاطس محطة الفرز و التعبئة /2023",null,null,null,null,null,null,null,null,null,null,141391,null,0.19999999992433004]
["2024-02-20","مذكرة اضافه","اضافه","اثبات مذكرةه اضافه مبغ 58889 ج متبقى قيمة اعماله بالكامل فى مشروع التلاجات وليس لديه اي مستحقات اخرى لدى الشركة","مشروع اعمال مجمع الثلاجات البطاطس محطة الفرز و التعبئة /2023",null,null,null,null,null,null,null,null,null,null,null,58889,-58888.800000000076]
["2024-03-25","مذكرة اضافه","اضافه","اثبات مذكرةه اضافه مبغ 100000 ج يتم صرفهم بعد تسليم الواجهه الخاصه بالثلاجات للاستشارى","مشروع اعمال مجمع الثلاجات البطاطس محطة الفرز و التعبئة /2023",null,null,null,null,null,null,null,null,null,null,null,100000,-158888.80000000008]
["2024-03-25","دفعات بنكية","96337203","دفعه للمقاول بشيك مسحوب على بنك مصر","مشروع اعمال مجمع الثلاجات البطاطس محطة الفرز و التعبئة /2023",null,null,null,null,null,null,null,null,null,null,158000,null,-888.80000000007567]
["2024-11-05","دفعات بنكية",null,"دفعه للمقاول بشيك مسحوب على بنك مصر","مشروع اعمال مجمع الثلاجات البطاطس محطة الفرز و التعبئة /2023",null,null,null,null,null,null,null,null,null,null,200000,null,199111.19999999992]
[]
[]
[]
[]
[null,null,null,null,null,null,null,null,null,null,null,{"$f":"667417-636771","v":30646}]

{"sheet":"اجرولايف","index":7,"n_rows":28,"n_cols":18,"rows_kept":28,"cut":false,"hidden":false,"merged":[[0,1,0,2]]}
[355,"شركة أجرولايف للمقاولات و التوريدات",null,2023,null,null,null,null,null,null,null,null,null,null,null,{"$f":"SUBTOTAL(9,P4:P124)","v":3782563},{"$f":"SUBTOTAL(9,Q4:Q124)","v":0},{"$f":"P1-Q1","v":3782563}]
[]
["التاريخ","الحركة /رقم القيد","رقم الشيك","البيــان","اسم المشروع","رقم العقد","بند الاعمال","كمية العقد","سعر البند","قيمة العقد","الوحدة","الكمية","السعر","قيمة المستخلص","رقم المستخلص","مدين","دائن","رصيـد"]
[null,null,null,"01.01.2023",null,null,null,null,null,null,null,null,null,null,null,{"$f":"'[1]ارصده المقاولين'!K159","v":0},{"$f":"'[1]ارصده المقاولين'!L159","v":0}]
["2023-09-04","دفعات بنكية","تحويل بنكي","تحويل بنكي للمقاول من بنك مصر","مشروع اعمال مجمع الثلاجات البطاطس محطة الفرز و التعبئة /2023","-","-","-","-","-","-","-","-","-","-",1000000,null,{"$f":"R4+P5-Q5","v":1000000}]
["2023-09-18","دفعات بنكية","تحويل بنكي","تحويل بنكي للمقاول من بنك مصر","مشروع اعمال مجمع الثلاجات البطاطس محطة الفرز و التعبئة /2023","-","-","-","-","-","-","-","-","-","-",1000000,null,2000000]
["2023-09-30","خصم","مذكرة خصم","مذكرة خصم عدد 47 نقلة مياه سعر النقلة 154 عن الفترة من 01/09/2023 و الي 30/09/2023","مشروع اعمال مجمع الثلاجات البطاطس محطة الفرز و التعبئة /2023","-","-","-","-","-","-","-","-","-","-",6059,null,2006059]
["2023-10-08","خصم","مذكرة خصم","مذكرة خصم على المقاول معدة لودر - عدد ساعات 33.5 ساعة سعر الساعة 370 جنيه","مشروع اعمال مجمع الثلاجات البطاطس محطة الفرز و التعبئة /2023","-","-","-","-","-","-","-","-","-","-",12395,null,2018454]
["2023-10-17","خصم","مذكرة خصم","مذكرة خصم على المقاول معدة هراس - عدد اليوميات 3 يومية سعر اليومية 1538 جنيه","مشروع اعمال مجمع الثلاجات البطاطس محطة الفرز و التعبئة /2023","-","-","-","-","-","-","-","-","-","-",4614,null,2023068]
["2023-10-17","خصم","مذكرة خصم","مذكرة خصم 19.5 ساعة لودر 910 ** ","مشروع اعمال مجمع الثلاجات البطاطس محطة الفرز و التعبئة /2023","-","-","-","-","-","-","-","-","-","-",3525,null,2026593]
["2023-10-29","دفعات بنكية","تحويل بنكي","تحويل بنكي للمقاول من بنك مصر","مشروع اعمال مجمع الثلاجات البطاطس محطة الفرز و التعبئة /2023","-","-","-","-","-","-","-","-","-","-",500000,null,2526593]
["2023-11-01","خصم","مذكرة خصم","مذكرة خصم عدد 35 نقلة مياه سعر النقلة 154 عن الفترة من 01/10/2023 و الي 31/101/2023","مشروع اعمال مجمع الثلاجات البطاطس محطة الفرز و التعبئة /2023","-","-","-","-","-","-","-","-","-","-",5419,null,2532012]
["2023-11-01","خصم","مذكرة خصم","مذكرة خصم 26 ساعة لودر 910 ** ","مشروع اعمال مجمع الثلاجات البطاطس محطة الفرز و التعبئة /2023","-","-","-","-","-","-","-","-","-","-",6447,null,2538459]
["2023-11-20","دفعات بنكية","73449736","دفعه بنكيه للمقاول بشيك مسحوب على بنك مصر","مشروع اعمال مجمع الثلاجات البطاطس محطة الفرز و التعبئة /2023",null,null,null,null,null,null,null,null,null,null,250000,null,2788459]
["2023-11-28","خصم","اشعار خصم","اشعار خصم على المقاول 12 ساعه عمل قام بها المقاول محمد سميرابراهيم احمد( مستخلص جاري 3 )","مشروع اعمال مجمع الثلاجات البطاطس محطة الفرز و التعبئة /2023",null,null,null,null,null,null,null,null,null,null,3244,null,2791703]
["2023-11-30","خصم","اشعار خصم","اشعار خصم عدد 25 نقلة مياه سعر النقلة 172.65 عن الفترة من 01/11/2023 و الي 30/11/2023","مشروع اعمال مجمع الثلاجات البطاطس محطة الفرز و التعبئة /2023",null,null,null,null,null,null,null,null,null,null,4316,null,2796019]
["2023-12-13","دفعات بنكية","تحويل بنكي","تحويل بنكي للمقاول من بنك مصر","مشروع اعمال مجمع الثلاجات البطاطس محطة الفرز و التعبئة /2023",null,null,null,null,null,null,null,null,null,null,250000,null,3046019]
["2023-12-28","دفعات نقديه","3134","ايداع في حساب شركة اجرو لايف دفعه مقدمه لحين عمل مستخلص","مشروع اعمال مجمع الثلاجات البطاطس محطة الفرز و التعبئة /2023",null,null,null,null,null,null,null,null,null,null,50000,null,3096019]
["2023-12-31","خصم","اشعار خصم","اشعار خصم على المقاول 19 ساعه * 209.82 للساعه عمل قام بها المقاول محمد سميرابراهيم احمد( مستخلص جاري 4 للمقاول محمد سمير ابراهيم)","مشروع اعمال مجمع الثلاجات البطاطس محطة الفرز و التعبئة /2023",null,null,null,null,null,null,null,null,null,null,3987,null,3100006]
["2023-12-31","خصم","اشعار خصم","اشعار خصم عدد 20 نقلة مياه سعر النقلة 158.93 عن الفترة من 01/12/2023 و الي 31/12/2023 ( مرفق مع مستخلص جاري 4 للمقاور رمضان عبد الحكيم )","مشروع اعمال مجمع الثلاجات البطاطس محطة الفرز و التعبئة /2023",null,null,null,null,null,null,null,null,null,null,3179,null,3103185]
["2024-01-03","دفعات بنكية","تحويل بنكي","تحويل بنكي للمقاول من بنك مصر","مشروع اعمال مجمع الثلاجات البطاطس محطة الفرز و التعبئة /2023",null,null,null,null,null,null,null,null,null,null,150000,null,3253185]
["2024-01-08","دفعات بنكية","تحويل بنكي","تحويل بنكي للمقاول من بنك مصر","مشروع اعمال مجمع الثلاجات البطاطس محطة الفرز و التعبئة /2023",null,null,null,null,null,null,null,null,null,null,250000,null,3503185]
["2024-01-31","خصم","اشعار خصم","اشعار خصم عدد 28 نقلة مياه سعر النقلة 119.1 عن الفترة من 01-01-2024 و الي 31-01-2024 ( مرفق مع مستخلص جاري 5 للمقاور رمضان عبد الحكيم )","مشروع اعمال مجمع الثلاجات البطاطس محطة الفرز و التعبئة /2023",null,null,null,null,null,null,null,null,null,null,3335,null,3506520]
["2024-01-31","خصم","اشعار خصم","اشعار خصم على المقاول عدد 17 ساعه * 153.87 للساعه من 01-01-2024 الى 31-01-2024 (مرفق مع مستخلص جاري 5 للمقاول محمد سمير ابراهيم)","مشروع اعمال مجمع الثلاجات البطاطس محطة الفرز و التعبئة /2023",null,null,null,null,null,null,null,null,null,null,2616,null,3509136]
["2024-01-01","خصم","اشعار خصم","مستخلص اعمال اضافيه نظافه B3 ( تخصم على شركة اجرو لايف م/ احمد صادق ) عماله نظافه 15000 ج + ايجار هيلتى 3000ج + ايجار مولد 3000 ج ","مشروع اعمال مجمع الثلاجات البطاطس محطة الفرز و التعبئة /2023",null,null,null,null,null,null,null,null,null,null,21000,null,3530136]
["2024-02-01","دفعات بنكية","تحويل بنكي","تحويل بنكي للمقاول من بنك مصر","مشروع اعمال مجمع الثلاجات البطاطس محطة الفرز و التعبئة /2023",null,null,null,null,null,null,null,null,null,null,250000,null,3780136]
["2024-02-29","خصم","اشعار خصم","اشعار خصم عدد 6 نقلة مياه سعر النقلة 147.24 عن الفترة من 01-02-2024 و الي 29-02-2024 ( مرفق مع مستخلص جاري 6 للمقاور رمضان عبد الحكيم )","مشروع اعمال مجمع الثلاجات البطاطس محطة الفرز و التعبئة /2023",null,null,null,null,null,null,null,null,null,null,883,null,3781019]
["2024-02-29","خصم","اشعار خصم","اشعار خصم على المقاول عدد 7 ساعه * 220.59 للساعه من 01-02-2024 الى 29-02-2024 (مرفق مع مستخلص جاري 6 للمقاول محمد سمير ابراهيم)","مشروع اعمال مجمع الثلاجات البطاطس محطة الفرز و التعبئة /2023",null,null,null,null,null,null,null,null,null,null,1544,null,3782563]

{"sheet":"الصرح","index":8,"n_rows":27,"n_cols":18,"rows_kept":27,"cut":false,"hidden":false,"merged":[[0,1,0,2]]}
[356,"شركة الصرح للمقاولات و التوريدات",null,2023,null,null,null,null,null,null,null,null,null,null,null,{"$f":"SUBTOTAL(9,P4:P117)","v":3119728},{"$f":"SUBTOTAL(9,Q4:Q117)","v":1982654},{"$f":"P1-Q1","v":1137074}]
[]
["التاريخ","الحركة /رقم القيد","رقم الشيك","البيــان","اسم المشروع","رقم العقد","بند الاعمال","كمية العقد","سعر البند","قيمة العقد","الوحدة","الكمية","السعر","قيمة المستخلص","رقم المستخلص","مدين","دائن","رصيـد"]
[null,null,null,"01.01.023",null,null,null,null,null,null,null,null,null,null,null,{"$f":"'[1]ارصده المقاولين'!K159","v":0},{"$f":"'[1]ارصده المقاولين'!L159","v":0}]
["2023-08-10","خصم ","مذكرة خصم","مذكرة خصم على المقاول معدة لودر - عدد ساعات 20.5 ساعة سعر الساعة 370 جنيه","مشروع اعمال مجمع الثلاجات البطاطس محطة الفرز و التعبئة /2023","-","-","-","-","-","-","-","-","-","-",7585,null,{"$f":"R4+P5-Q5","v":7585}]
["2023-09-04","دفعات بنكية","تحويل بنكي","تحويل بنكي للمقاول من بنك مصر","مشروع اعمال مجمع الثلاجات البطاطس محطة الفرز و التعبئة /2023","-","-","-","-","-","-","-","-","-","-",2000000,null,{"$f":"R5+P6-Q6","v":2007585}]
["2023-09-30","خصم ","مذكرة خصم","مذكرة خصم نقلات مياه عن الفترة من 01/09/2023 و الي 30/09/2023 *** عدد 52 نقلة مياه","مشروع اعمال مجمع الثلاجات البطاطس محطة الفرز و التعبئة /2023","-","-","-","-","-","-","-","-","-","-",6703,null,2014288]
["2023-09-30","خصم ","مذكرة خصم","مذكرة خصم معدة لودر 910 *** عدد الساعات 27 ساعة *** عن الفترة من 01/09/2023 و الي 30/09/023","مشروع اعمال مجمع الثلاجات البطاطس محطة الفرز و التعبئة /2023","-","-","-","-","-","-","-","-","-","-",4880,null,2019168]
["2023-10-29","دفعات بنكية","تحويل بنكي","تحويل بنكي للمقاول من بنك مصر","مشروع اعمال مجمع الثلاجات البطاطس محطة الفرز و التعبئة /2023","-","-","-","-","-","-","-","-","-","-",1000000,null,3019168]
["2023-11-01","خصم ","مذكرة خصم","مذكرة خصم نقلات مياه عن الفترة من 01/10/2023 و الي 31/10/2023  *** 25 نقلة ","مشروع اعمال مجمع الثلاجات البطاطس محطة الفرز و التعبئة /2023","-","-","-","-","-","-","-","-","-","-",5419,null,3024587]
["2023-11-01","خصم ","مذكرة خصم","مذكرة خصم معدة لودر 910 *** عدد الساعات 23 ساعة *** عن الفترة من 01/10/2023 و الي 31/10/2023","مشروع اعمال مجمع الثلاجات البطاطس محطة الفرز و التعبئة /2023","-","-","-","-","-","-","-","-","-","-",5703,null,3030290]
["2023-11-30","خصم ","مذكرة خصم","مذكرة خصم معدة لودر 910 *** عدد الساعات 9 ساعة *** عن الفترة من 01/11/2023 و الي 30/11/2023","مشروع اعمال مجمع الثلاجات البطاطس محطة الفرز و التعبئة /2023",null,null,null,null,null,null,null,null,null,null,2433,null,3032723]
["2023-11-30","خصم ","اشعار خصم","اشعار خصم نقلات مياه عن الفترة من 01/11/2023 و الي 30/11/2023  *** 26 نقلة ","مشروع اعمال مجمع الثلاجات البطاطس محطة الفرز و التعبئة /2023",null,null,null,null,null,null,null,null,null,null,4489,null,3037212]
["2023-12-31","خصم ","مذكرة خصم","مذكرة خصم معدة لودر 910 *** عدد الساعات 1 ساعة *** عن الفترة من 01/12/2023 و الي 31/12/2023","مشروع اعمال مجمع الثلاجات البطاطس محطة الفرز و التعبئة /2023",null,null,null,null,null,null,null,null,null,null,210,null,3037422]
["2024-01-01","أعمال مستحقه","مستخلصات","مستخلص جاري 1 ( اعمال b2 ) من بدايه الاعمال حتى تاريخ 23-12-2023 استحقاق الخرسانه","مشروع اعمال مجمع الثلاجات البطاطس محطة الفرز و التعبئة /2023",null,null,null,null,null,"م2",23.4,800,{"$f":"M15*L15","v":18720},null,null,{"$f":"N15","v":18720},3018702]
["2024-01-01","أعمال مستحقه","مستخلصات","مستخلص جاري 1 ( اعمال b2 ) من بدايه الاعمال حتى تاريخ 23-12-2023 استحقاق الطوب والاسمنت","مشروع اعمال مجمع الثلاجات البطاطس محطة الفرز و التعبئة /2023",null,null,null,null,null,"م2",296,1900,562400,null,null,{"$f":"N16","v":562400},2456302]
["2024-01-01","أعمال مستحقه","مستخلصات","مستخلص جاري 1 ( اعمال b2 ) من بدايه الاعمال حتى تاريخ 23-12-2023 استحقاق تخشين حوائط داخليه","مشروع اعمال مجمع الثلاجات البطاطس محطة الفرز و التعبئة /2023",null,null,null,null,null,"م2",3546.5,150,531975,null,null,531975,1924327]
["2024-01-01","أعمال مستحقه","مستخلصات","مستخلص جاري 1 ( اعمال b2 ) من بدايه الاعمال حتى تاريخ 23-12-2023 استحقاق تخشين الاسقف والكمرات","مشروع اعمال مجمع الثلاجات البطاطس محطة الفرز و التعبئة /2023",null,null,null,null,null,"م2",490,150,73500,null,null,73500,1850827]
["2024-01-20","أعمال مستحقه","مستخلصات","مستخلص جاري 1 ( اعمال المسجد ) من بدايه الاعمال حتى تاريخ 20-01-2024 استحقاق تخشين الحوائط الداخليه","مشروع اعمال مجمع الثلاجات البطاطس محطة الفرز و التعبئة /2023",null,null,null,null,null,"م2",106.6,150,15990,null,null,15990,1834837]
["2024-01-20","أعمال مستحقه","مستخلصات","مستخلص جاري 1 ( اعمال المسجد ) من بدايه الاعمال حتى تاريخ 20-01-2024 استحقاق تخشين الاسقف الداخليه وجوانب الكمرات","مشروع اعمال مجمع الثلاجات البطاطس محطة الفرز و التعبئة /2023",null,null,null,null,null,"م2",107.9,150,16185,null,null,16185,1818652]
["2024-01-20","أعمال مستحقه","مستخلصات","مستخلص جاري 1 ( اعمال المبنى السكنى ) من بدايه الاعمال حتى تاريخ 20-01-2024 استحقاق اعمال محاره + اعمال كهربا + الواجهه","مشروع اعمال مجمع الثلاجات البطاطس محطة الفرز و التعبئة /2023",null,null,null,null,null,null,null,null,null,null,null,{"$f":"550000","v":550000},1268652]
["2024-01-20","أعمال مستحقه","مستخلصات","مستخلص جاري 1 ( اعمال الاداري ) من بدايه الاعمال حتى تاريخ 20-01-2024 اعمال دهانات + تركيبات صرف + كهربا + محاره","مشروع اعمال مجمع الثلاجات البطاطس محطة الفرز و التعبئة /2023",null,null,null,null,null,null,null,null,null,null,null,82530,1186122]
["2024-01-20","أعمال مستحقه","مستخلصات","مستخلص اعمال اضافيه (اعمال تكسير + مبانى  محاره + مرمات + فريسبيكو+عراميس + الواجهه )","مشروع اعمال مجمع الثلاجات البطاطس محطة الفرز و التعبئة /2023",null,null,null,null,null,null,null,null,null,null,null,131354,1054768]
["2024-01-20","خصم ","مذكرة خصم","مذكرة استلام خامات تخصم من شركة الصرح عدد 20000 طوبة من الهلال بسعر 1350 ج/للالف","مشروع اعمال مجمع الثلاجات البطاطس محطة الفرز و التعبئة /2023",null,null,null,null,null,null,null,null,null,null,27000,null,1081768]
["2024-01-20","خصم ","مذكرة خصم","مذكرة استلام خامات تخصم من شركة الصرح عدد 3840 طوبة من شركة يثرب ( تضاف له ) بسعر 1400 ج/للالف","مشروع اعمال مجمع الثلاجات البطاطس محطة الفرز و التعبئة /2023",null,null,null,null,null,null,null,null,null,null,5376,null,1087144]
["2024-01-20","خصم ","مذكرة خصم","مذكرة استلام خامات تخصم من شركة الصرح عدد 98 شيكاره من شركة يثرب ( تضاف له ) بسعر 160 ج/للشكاره","مشروع اعمال مجمع الثلاجات البطاطس محطة الفرز و التعبئة /2023",null,null,null,null,null,null,null,null,null,null,{"$f":"98*160","v":15680},null,1102824]
["2024-01-01","خصم ","مذكرة خصم","مذكرة اضافه لاعمال النظافه تخصم من شركة الصرح ( عماله تنظيف + ايجار هيلتى + ايجار مولدات + يوميات عربيه توصيل )","مشروع اعمال مجمع الثلاجات البطاطس محطة الفرز و التعبئة /2023",null,null,null,null,null,null,null,null,null,null,34250,null,1137074]

{"sheet":"رمضان.عبد.الحكيم_محمد","index":9,"n_rows":24,"n_cols":18,"rows_kept":24,"cut":false,"hidden":false,"merged":[[0,1,0,2]]}
[377,"رمضان عبد الحكيم محمد حسن",null,2023,null,null,null,null,null,null,"عدد اليوميات",{"$f":"SUBTOTAL(9,L5:L144)","v":183},"قيمة الاعمال",{"$f":"SUBTOTAL(9,N5:N144)","v":168915},null,{"$f":"SUBTOTAL(9,P5:P56)","v":215992},{"$f":"SUBTOTAL(9,Q5:Q56)","v":234905.54},{"$f":"P1+P4-Q1-Q4","v":-18913.540000000008}]
[]
["التاريخ","الحركة /رقم القيد","رقم الشيك","البيــان","اسم المشروع","رقم العقد","بند الاعمال","بداية الاعمال","نهاية الاعمال","سعر البند بالعقد","الوحدة","الكمية","السعر","قيمة المستخلص","رقم المستخلص","مدين","دائن","رصيـد"]
[null,null,null,"2023-01-01",null,null,null,null,null,null,null,null,null,null,null,{"$f":"'[1]ارصده المقاولين'!K159","v":0},{"$f":"'[1]ارصده المقاولين'!L159","v":0}]
["2023-09-30","أعمال مستحقة","مستخلصات","مستخلص توريد جرار نقل مياه عن الفترة من 02/09/2023 و الي 30/09/2023","مشروع اعمال مجمع الثلاجات البطاطس محطة الفرز و التعبئة /2023","-","جرار نقل مياه","2023-09-02","2023-09-30","-","يومية",25,923,{"$f":"M5*L5","v":23075},"جاري 1",null,{"$f":"N5","v":23075},{"$f":"R4+P5-Q5","v":-23075}]
["2023-10-10","دفعات بنكية",77598975,"دفعة للمقاول بشيك بنكي مسحوب على بنك مصر ","مشروع اعمال مجمع الثلاجات البطاطس محطة الفرز و التعبئة /2023","-","-","-","-","-","-","-","-","-","-",23000,null,{"$f":"R5+P6-Q6","v":-75}]
["2023-11-01","أعمال مستحقة","مستخلصات","مستخلص توريد جرار نقل مياه عن الفترة من 01/10/2023 و الي 31/10/2023","مشروع اعمال مجمع الثلاجات البطاطس محطة الفرز و التعبئة /2023","-","جرار نقل مياه","2023-10-01","2023-10-31","-","يومية",26,923,{"$f":"M7*L7","v":23998},"جاري 2",null,{"$f":"N7","v":23998},{"$f":"R6+P7-Q7","v":-24073}]
["2023-11-20","دفعات بنكية","78873057","دفعة للمقاول بشيك بنكي مسحوب على بنك مصر ","مشروع اعمال مجمع الثلاجات البطاطس محطة الفرز و التعبئة /2023","-","-","-","-","-","-","-","-","-","-",24000,null,{"$f":"R7+P8-Q8","v":-73}]
["2023-11-30","أعمال مستحقة","مستخلصات","مستخلص توريد جرار نقل مياه عن الفترة من 01/11/2023 و الي 30/11/2023","مشروع اعمال مجمع الثلاجات البطاطس محطة الفرز و التعبئة /2023","1&2023","جرار نقل مياه","2023-11-01","2023-11-30","-","يومية",26,923,{"$f":"M9*L9","v":23998},"جاري 3",null,{"$f":"N9","v":23998},{"$f":"R8+P9-Q9","v":-24071}]
["2023-12-07","دفعات بنكية","72456331","دفعة للمقاول بشيك بنكي مسحوب على بنك مصر ","مشروع اعمال مجمع الثلاجات البطاطس محطة الفرز و التعبئة /2023",null,null,null,null,null,null,null,null,null,null,24000,null,-71]
["2024-12-31","أعمال مستحقة","مستخلصات","مستخلص جاري 4  جرار زراعي بمقطورة مياه عن الفترة من 01/12/2023 و الي 31/12/2023 ","مشروع اعمال مجمع الثلاجات البطاطس محطة الفرز و التعبئة /2023","1&2023","جرار نقل مياه","2023-12-01","2023-12-31","-","يومية",26,923,24000,"جاري 4",null,{"$f":"N11","v":24000},-24071]
["2024-01-09","دفعات بنكية","95158746","دفعة للمقاول بشيك بنكي مسحوب على بنك مصر ","مشروع اعمال مجمع الثلاجات البطاطس محطة الفرز و التعبئة /2023",null,null,null,null,null,null,null,null,null,null,24000,null,-71]
["2024-01-31","أعمال مستحقة","مستخلصات","مستخلص جاري 5  جرار زراعي بمقطورة مياه عن الفترة من 01-01-2024 و الي 31-01-2024 / عدد 26 يوم + 2يوم اضافى *923 ج ","مشروع اعمال مجمع الثلاجات البطاطس محطة الفرز و التعبئة /2023","1&2023","جرار نقل مياه","2024-01-01","2024-01-31","-","يومية",28,923,{"$f":"L13*M13","v":25844},"جاري 5",null,{"$f":"N13","v":25844},-25915]
["2024-02-06","دفعات بنكية","95703729","دفعة للمقاول بشيك بنكي مسحوب على بنك مصر ","مشروع اعمال مجمع الثلاجات البطاطس محطة الفرز و التعبئة /2023",null,null,null,null,null,null,null,null,null,null,25917,null,2]
["2024-02-29","أعمال مستحقة","مستخلصات","مستخلص جاري 6 جرار زراعي بمقطورة مياه عن الفترة من 01-02-2024 و الي 29-02-2024 / عدد 26 يوم * 923 ج","مشروع اعمال مجمع الثلاجات البطاطس محطة الفرز و التعبئة /2023","1&2023","جرار نقل مياه","2024-02-01","2024-02-29","-","يومية",26,{"$f":"N15/L15","v":923.07692307692309},24000,"جاري 6",null,24000,-23998]
["2024-03-24","دفعات بنكية","96337194","دفعة للمقاول بشيك بنكي مسحوب على بنك مصر ","مشروع اعمال مجمع الثلاجات البطاطس محطة الفرز و التعبئة /2023",null,null,null,null,null,null,null,null,null,null,24000,null,2]
["2024-03-31","أعمال مستحقة","مستخلصات","مستخلص جاري 7 جرار زراعي بمقطورة مياه عن الفترة من 01-03-2024 و الي 31-03-2024 / عدد 26 يوم * 923 ج","مشروع اعمال مجمع الثلاجات البطاطس محطة الفرز و التعبئة /2023","1&2023","جرار نقل مياه","2024-03-01","2024-03-31","-","يومية",26,{"$f":"N17/L17","v":923.07692307692309},24000,"جاري 7",null,{"$f":"N17","v":24000},-23998]
["2024-04-18","دفعات بنكية","تحويل","من بنك مصر","مشروع اعمال مجمع الثلاجات البطاطس محطة الفرز و التعبئة /2024",null,null,null,null,null,null,null,null,null,null,24000,null,2]
["2024-04-30","أعمال مستحقة","مستخلصات","مستخلص ج 8 عدد26 يوم من1-4 الى 30-4","مشروع اعمال مجمع الثلاجات البطاطس محطة الفرز و التعبئة /2025",null,null,null,null,null,null,null,null,null,"جارى 8",null,24000,-23998]
["2024-05-29","دفعات بنكية","تحويل","من بنك مصر","مشروع اعمال مجمع الثلاجات البطاطس محطة الفرز و التعبئة /2026",null,null,null,null,null,null,null,null,null,null,24000,null,2]
["2024-07-18","أعمال مستحقة","مستخلصات","مستخلص ج9 عدد25 يوم من1-5 الى 30-5","مشروع اعمال مجمع الثلاجات البطاطس محطة الفرز و التعبئة /2027",null,null,null,null,null,null,null,null,null,"جارى 9",null,23077,-23075]
["2024-07-17","دفعات بنكية","تحويل","من بنك مصر","مشروع اعمال مجمع الثلاجات البطاطس محطة الفرز و التعبئة /2028",null,null,null,null,null,null,null,null,null,null,23075,null,0]
["2024-08-15","أعمال مستحقة","مستخلصات","مستخلص ج10 عدد25 يوم من1-6 الى 30-6","مشروع اعمال مجمع الثلاجات البطاطس محطة الفرز و التعبئة /2029",null,null,null,null,null,null,null,null,null,"جارى 10",null,12452,-12452]
["2024-08-15","أعمال مستحقة","مستخلصات","مستخلص ج11 عدد7 يوم من1-7 الى 30-7","مشروع اعمال مجمع الثلاجات البطاطس محطة الفرز و التعبئة /2030",null,null,null,null,null,null,null,null,null,"جارى 11",null,6461.54,-18913.54]

{"sheet":"فرج.كمال.محمود.فرج.هلال","index":10,"n_rows":12,"n_cols":15,"rows_kept":12,"cut":false,"hidden":false,"merged":[[0,1,0,2]]}
[379,"فرج كمال محمود فرج هلال",null,{"$f":"'[1]1'!$D$1","v":2023},null,null,null,null,null,null,null,null,{"$f":"SUBTOTAL(9,M4:M45)","v":52000},{"$f":"SUBTOTAL(9,N4:N45)","v":52000},{"$f":"M1-N1","v":0}]
[]
["التاريخ","الحركة /رقم القيد","رقم الشيك","البيــان","اسم المشروع","رقم العقد","بند الاعمال","الوحدة","الكمية","السعر","القيمة","رقم المستخلص","مدين","دائن","رصيـد"]
[null,null,null,{"$f":"'[1]1'!$D$4","v":"رصيد 2023/1/1"},null,null,null,null,null,null,null,null,{"$f":"'[1]ارصده المقاولين'!K20","v":0},{"$f":"'[1]ارصده المقاولين'!L20","v":0},{"$f":"M4-N4","v":0}]
["2023-09-20","استحقاق","أعمال مستحقة","مذكرة اضافة أعمال خاصة بتنزيل كرفانات لموقع الثلاجات","مشروع اعمال مجمع الثلاجات البطاطس محطة الفرز و التعبئة /2023","-","ونش نظير تنزيل كرفانات","يومية",2,5000,{"$f":"J5*I5","v":10000},"مذكرة",null,{"$f":"K5","v":10000},{"$f":"O4+M5-N5","v":-10000}]
["2023-09-20","دفعات نقدية","751","دفعة نقدية من خزينة الشركة","مشروع اعمال مجمع الثلاجات البطاطس محطة الفرز و التعبئة /2023","-","-","-","-","-","-","-",10000,null,{"$f":"O5+M6-N6","v":0}]
["2023-10-29","استحقاق","أعمال مستحقة","مذكرة اضافة أعمال خاصة نقل مولدات الكهرباء","مشروع اعمال مجمع الثلاجات البطاطس محطة الفرز و التعبئة /2023","-","ونش نظير نقل مولدات الكهرباء","يومية",2,5000,{"$f":"J7*I7","v":10000},"مذكرة",null,{"$f":"K7","v":10000},{"$f":"O6+M7-N7","v":-10000}]
["2023-10-29","دفعات نقدية","1007","دفعة نقدية من خزينة الشركة","مشروع اعمال مجمع الثلاجات البطاطس محطة الفرز و التعبئة /2023","-","-","-","-","-","-","-",10000,null,{"$f":"O7+M8-N8","v":0}]
["2024-01-03","اضافة","مذكرة","اثبات مذكرة اضافه بمبلغ 22000 وذلك نظير توريد ونش 50 لتنزيل وتعتيق حاويات الخامات الوارده من موقع اللاهون على ان يكون سعر اليوميه 11000 جنيه * 2يوم","مشروع اعمال مجمع الثلاجات البطاطس محطة الفرز و التعبئة /2023",null,"توريد ونش 50","يومية",2,11000,{"$f":"J9*I9","v":22000},"مذكرة",null,{"$f":"K9","v":22000},{"$f":"O8+M9-N9","v":-22000}]
["2024-01-03","خصم","2004","اثبات خصم سولار ايصال 2004 بقيمه236 لتر *11 جنيه","مشروع اعمال مجمع الثلاجات البطاطس محطة الفرز و التعبئة /2023",null,null,null,null,null,null,null,{"$f":"11*236","v":2596},null,-19404]
["2024-01-03","اضافة","مذكرة","اثبات مذكرة اضافه بمبلغ 10000 وذلك نظير تنزيل كرفنات بالمنطقه الاداريه والماخذ بالمنطقه التبادليه لقطاع اللاهون عدد 4 كرفانات + عدد بالماخذ","مشروع اعمال مجمع الثلاجات البطاطس محطة الفرز و التعبئة /2023",null,"تنزيل كرفانات",null,null,null,null,null,null,10000,-29404]
["2024-01-04","دفعات بنكيه","79689718","دفعه بشيك مسخوب على بنك مصر","مشروع اعمال مجمع الثلاجات البطاطس محطة الفرز و التعبئة /2023",null,null,null,null,null,null,null,29404,null,0]

{"sheet":"محمد.سامى.المشد.فيوتشر","index":11,"n_rows":14,"n_cols":18,"rows_kept":14,"cut":false,"hidden":false,"merged":[[0,1,0,2]]}
[{"$f":"'[1]ارصده المقاولين'!C266","v":"384"},"محمد سامى المشد - فيوتشر للاستثمار",null,2023,null,null,null,null,null,null,null,null,null,null,null,{"$f":"SUBTOTAL(9,P4:P75)","v":273240},{"$f":"SUBTOTAL(9,Q4:Q75)","v":273240},{"$f":"P1-Q1","v":0}]
[]
["التاريخ","الحركة /رقم القيد","رقم الشيك","البيــان","اسم المشروع","رقم العقد","بند الاعمال","الوحده","الكميه","السعر","نسبة الانجاز","رقم الكلاستر","رقم الصوبة","قيمة المستخلص","رقم المستخلص","مدين","دائن","رصيـد"]
[null,null,null,"01.01.2023",null,null,null,null,null,null,null,null,null,null,null,{"$f":"'[1]ارصده المقاولين'!K159","v":0},{"$f":"'[1]ارصده المقاولين'!L159","v":0}]
["2023-10-26","خصم سولار","5469","صرف 80 لتر * 9ج للمقاول من كشف رقم 77","مشروع اعمال الثلاجات",null,null,null,null,null,null,null,null,null,null,{"$f":"80*9","v":720},null,{"$f":"R4+P5-Q5","v":720}]
["2023-11-30","خصم","مذكرة خصم","مذكرة خصم معدة لودر 910 ** عد الساعات 6 ساعة ** عن الفترة من 01/11/2023 و الي 30/11/2023","مشروع اعمال مجمع الثلاجات البطاطس محطة الفرز و التعبئة /2023",null,null,null,null,null,null,null,null,null,null,1622,null,{"$f":"R5+P6-Q6","v":2342}]
["2024-01-01","أعمال مستحقه","مستخلصات","مستخلص جاري 1 ( اعمال تدعيم السقف B3 - سملات فى B2,B3 ) اعمال تدعيم البلاطات الخرسانيه لاسقف المبانى الاداريه","مشروع اعمال مجمع الثلاجات البطاطس محطة الفرز و التعبئة /2023","6&2023","تدعيم البلاط الخرسانى","م2",996,150,null,null,null,{"$f":"I7*J7","v":149400},null,null,{"$f":"N7","v":149400},{"$f":"R6+P7-Q7","v":-147058}]
["2024-01-01","أعمال مستحقه","مستخلصات","مستخلص جاري 1 ( اعمال تدعيم السقف B3 - سملات فى B2,B3 ) اعمال توريد وتنفيذ خرسانه مسلحهللميدات ورقاب الاعمده","مشروع اعمال مجمع الثلاجات البطاطس محطة الفرز و التعبئة /2023","6&2023","تدعيم البلاط الخرسانى","م2",14.28,1000,null,null,null,{"$f":"I8*J8","v":14280},null,null,{"$f":"N8","v":14280},-161338]
["2024-01-01","أعمال مستحقه","مستخلصات","مستخلص ( اعمال اضافيه للسملات B2,B3 ) اعمال تكسير 64000 ج + ردم ودمك التربه 8000 ج + توريد فوم 1080 ج + توريد اديكريت 600 ج)","مشروع اعمال مجمع الثلاجات البطاطس محطة الفرز و التعبئة /2023","6&2023",null,null,null,null,null,null,null,null,null,null,{"$f":"16*4000+16*500+18*60+1*600","v":73680},-235018]
["2024-01-01","اضافه","مذكرة اضافه","مذكرة بنود اضافيه ل B2,B3 خرسانه عاديه للدكة اسفل التبليطات والارصفه","مشروع اعمال مجمع الثلاجات البطاطس محطة الفرز و التعبئة /2023","6&2023",null,"م2",99.2,60,null,null,null,{"$f":"I10*J10","v":5952},null,null,{"$f":"N10","v":5952},-240970]
["2024-01-01","اضافه","مذكرة اضافه","مذكرة بنود اضافيه ل B2,B3 توريد وتنفيذ بلاطات خرسانه مسلحه لزوم الارضيات","مشروع اعمال مجمع الثلاجات البطاطس محطة الفرز و التعبئة /2023","6&2023",null,"م2",49.6,180,null,null,null,{"$f":"I11*J11","v":8928},null,null,{"$f":"N11","v":8928},-249898]
["2024-01-01","أعمال مستحقه","مستخلصات","مستخلص اعمال اضافيه نظافه B3 ( تخصم على شركة اجرو لايف م/ احمد صادق ) عماله نظافه 15000 ج + ايجار هيلتى 3000ج + ايجار مولد 3000 ج ","مشروع اعمال مجمع الثلاجات البطاطس محطة الفرز و التعبئة /2023","6&2023",null,null,null,null,null,null,null,null,null,null,{"$f":"15000+3000+3000","v":21000},-270898]
["2024-01-01","خصم","مذكرة خصم","مذكرة اعمال اضافيه تخصم على شركة فيوتشر وتضاف لشركة يثرب ( عماله 3300 ج + حداده 4200 ج + 2هيلتى 300 ج +مولد 450 ج +عربيه 1300 ج )","مشروع اعمال مجمع الثلاجات البطاطس محطة الفرز و التعبئة /2023","6&2023",null,null,null,null,null,null,null,null,null,{"$f":"3300+4200+300+450+1300","v":9550},null,-261348]
["2024-02-01","دفعات بنكيه","تحويل ","تحويل من بنك مصر","مشروع اعمال مجمع الثلاجات البطاطس محطة الفرز و التعبئة /2023",null,null,null,null,null,null,null,null,null,null,261348,null,0]

{"sheet":"وائل.فوزى.يونيفرسال","index":12,"n_rows":30,"n_cols":18,"rows_kept":30,"cut":false,"hidden":false,"merged":[[0,1,0,2]]}
[385,"وائل فوزي ابراهيم محمد اسماعيل- يونيفرسال",null,2023,null,null,null,null,null,null,null,null,null,null,null,{"$f":"SUBTOTAL(9,P4:P160)","v":30698588},{"$f":"SUBTOTAL(9,Q4:Q160)","v":15127110},{"$f":"P1-Q1","v":15571478}]
[]
["التاريخ","الحركة /رقم القيد","رقم الشيك","البيــان","اسم المشروع","رقم العقد","بند الاعمال","كمية العقد","سعر البند","قيمة العقد","نسبة الانجاز","رقم الكلاستر","رقم الصوبة","قيمة المستخلص","رقم المستخلص","مدين","دائن","رصيـد"]
[null,null,null,"01.01.2023",null,null,null,null,null,null,null,null,null,null,null,{"$f":"'[1]ارصده المقاولين'!K159","v":0},{"$f":"'[1]ارصده المقاولين'!L159","v":0}]
["2023-10-01","دفعات بنكية",null,"تحويل بنكي","مشروع اعمال الثلاجات",null,null,null,null,null,null,null,null,null,null,2000000,null,{"$f":"R2-P5+Q5","v":-2000000}]
["2023-11-13","دفعات بنكية",null,"تحويل بنكي","مشروع اعمال الثلاجات",null,null,null,null,null,null,null,null,null,null,5000000,null,{"$f":"+R5+Q6-P6","v":-7000000}]
["2023-11-13","دفعات بنكية","78873058","دفعه للمقاول بشيك مسحوبعلى بنك مصر","مشروع اعمال الثلاجات",null,null,null,null,null,null,null,null,null,null,1000000,null,{"$f":"+R6+Q7-P7","v":-8000000}]
["2023-11-13","دفعات بنكية","78873059","دفعه للمقاول بشيك مسحوبعلى بنك مصر","مشروع اعمال الثلاجات",null,null,null,null,null,null,null,null,null,null,1000000,null,-9000000]
["2023-11-13","دفعات بنكية","78873060","دفعه للمقاول بشيك مسحوبعلى بنك مصر","مشروع اعمال الثلاجات",null,null,null,null,null,null,null,null,null,null,1000000,null,-10000000]
["2023-11-13","دفعات بنكية","78873061","دفعه للمقاول بشيك مسحوبعلى بنك مصر","مشروع اعمال الثلاجات",null,null,null,null,null,null,null,null,null,null,1000000,null,-11000000]
["2023-11-13","دفعات بنكية","78873062","دفعه للمقاول بشيك مسحوبعلى بنك مصر","مشروع اعمال الثلاجات",null,null,null,null,null,null,null,null,null,null,1000000,null,-12000000]
["2023-11-13","دفعات بنكية","78873063","دفعه للمقاول بشيك مسحوبعلى بنك مصر","مشروع اعمال الثلاجات",null,null,null,null,null,null,null,null,null,null,1000000,null,-13000000]
["2023-11-13","دفعات بنكية","78873064","دفعه للمقاول بشيك مسحوبعلى بنك مصر","مشروع اعمال الثلاجات",null,null,null,null,null,null,null,null,null,null,1000000,null,-14000000]
["2023-11-13","دفعات بنكية","78873065","دفعه للمقاول بشيك مسحوبعلى بنك مصر","مشروع اعمال الثلاجات",null,null,null,null,null,null,null,null,null,null,1000000,null,-15000000]
["2023-11-30","خصم","مذكرة خصم","مذكرة خصم معدة لودر 910 ** عد الساعات 39 ساعة **270.31 جنيه عن الفترة من 01/11/2023 و الي 30/11/2023","مشروع اعمال مجمع الثلاجات البطاطس محطة الفرز و التعبئة /2023",null,null,null,null,null,null,null,null,null,null,10542,null,-15010542]
["2023-12-31","خصم","مذكرة خصم","مذكرة خصم معدة لودر 910 ** عد الساعات 40 ساعة **209.82 جنيه عن الفترة من 01/12/2023 و الي 31/12/2023","مشروع اعمال مجمع الثلاجات البطاطس محطة الفرز و التعبئة /2023",null,null,null,null,null,null,null,null,null,null,8393,null,-15018935]
["2024-01-10","دفعات بنكية","95158739","دفعه للمقاول بشيك مسحوب على بنك مصر","مشروع اعمال مجمع الثلاجات البطاطس محطة الفرز و التعبئة /2023",null,null,null,null,null,null,null,null,null,null,1000000,null,-16018935]
["2024-01-10","دفعات بنكية","95158740","دفعه للمقاول بشيك مسحوب على بنك مصر","مشروع اعمال مجمع الثلاجات البطاطس محطة الفرز و التعبئة /2023",null,null,null,null,null,null,null,null,null,null,1000000,null,-17018935]
["2024-01-10","دفعات بنكية","95158735","دفعه للمقاول بشيك مسحوب على بنك مصر","مشروع اعمال مجمع الثلاجات البطاطس محطة الفرز و التعبئة /2023",null,null,null,null,null,null,null,null,null,null,1000000,null,-18018935]
["2024-01-10","دفعات بنكية","95158737","دفعه للمقاول بشيك مسحوب على بنك مصر","مشروع اعمال مجمع الثلاجات البطاطس محطة الفرز و التعبئة /2023",null,null,null,null,null,null,null,null,null,null,1000000,null,-19018935]
["2024-01-10","دفعات بنكية","95158738","دفعه للمقاول بشيك مسحوب على بنك مصر","مشروع اعمال مجمع الثلاجات البطاطس محطة الفرز و التعبئة /2023",null,null,null,null,null,null,null,null,null,null,1000000,null,-20018935]
["2024-01-11","دفعات بنكية","95158736","دفعه للمقاول بشيك مسحوب على بنك مصر","مشروع اعمال مجمع الثلاجات البطاطس محطة الفرز و التعبئة /2023",null,null,null,null,null,null,null,null,null,null,1000000,null,-21018935]
["2024-01-31","خصم","اشعار خصم","اشعار خصم معدة لودر 910 / عد الساعات 31 ساعة * 153.87 ج  من 01-01-2024  الي 31-01-2024 ( مرفق مع مستخلص جاري 5 للمقاول محمد سمير ابراهيم )","مشروع اعمال مجمع الثلاجات البطاطس محطة الفرز و التعبئة /2023",null,null,null,null,null,null,null,null,null,null,4770,null,-21023705]
["2024-02-01","دفعات بنكية","تحويل","دفعه للمقاول تحويل على بنك مصر","مشروع اعمال مجمع الثلاجات البطاطس محطة الفرز و التعبئة /2023",null,null,null,null,null,null,null,null,null,null,6000000,null,-27023705]
["2024-02-29","خصم","اشعار خصم","اشعار خصم معدة لودر 910 / عد الساعات 31 ساعة * 220.59 ج  من 01-02-2024  الي 29-02-2024 ( مرفق مع مستخلص جاري 6 للمقاول محمد سمير ابراهيم )","مشروع اعمال مجمع الثلاجات البطاطس محطة الفرز و التعبئة /2023",null,null,null,null,null,null,null,null,null,null,6838,null,-27030543]
["2024-03-30","مذكرة خصم","خصم","اشعار خصم معدة لودر 910 / عد الساعات 31 ساعة * 220.59 ج  من 01-03-2024  الي 29-03-2024 ( مرفق مع مستخلص جاري 7 للمقاول محمد سمير ابراهيم )",null,null,null,null,null,null,null,null,null,null,null,3545,null,-27034088]
["2024-05-29","دفعات بنكية","تحويل","دفعه للمقاول بشيك مسحوب على بنك مصر",null,null,null,null,null,null,null,null,null,null,null,1200000,null,-28234088]
["2024-06-02","مستخلص اعمال","مستخلص","مستخلص ج 1 تدعيم b2,b3",null,null,null,null,null,null,null,null,null,null,null,null,15127110,-13106978]
["2024-06-02","مذكرة خصم","خصم","خصم 3 فواتير توريدات خامات ",null,null,null,null,null,null,null,null,null,null,null,214500,null,-13321478]
[null,null,null,null,null,null,null,null,null,null,null,null,null,null,null,2250000,null,-15571478]

{"sheet":"محمد.احمد.فاروق","index":13,"n_rows":28,"n_cols":18,"rows_kept":28,"cut":false,"hidden":false,"merged":[[0,1,0,2]]}
[408,"محمد احمد فاروق السيد",null,2023,null,null,null,null,null,null,null,null,null,null,null,{"$f":"SUBTOTAL(9,P4:P89)","v":106133},{"$f":"SUBTOTAL(9,Q4:Q89)","v":106133},{"$f":"P1-Q1","v":0}]
[]
["التاريخ","الحركة /رقم القيد","رقم الشيك","البيــان","اسم المشروع","رقم العقد","بند الاعمال","كمية العقد","سعر البند","رقم الكلاستر","رقم الصوبة","الكمية","قيمة الوحدة","قيمة المستخلص","رقم المستخلص","مدين","دائن","رصيـد"]
[null,null,null,"01.01.2023",null,null,null,null,null,null,null,null,null,null,null,{"$f":"'[1]ارصده المقاولين'!K159","v":0},{"$f":"'[1]ارصده المقاولين'!L159","v":0}]
["2023-10-30","أعمال مستحقة",null,"استحقاق ايجار سيارات ملاكى عن شهر اكتوبر ","مشروع اعمال مجمع الثلاجات البطاطس محطة الفرز و التعبئة /2023",null,null,null,null,null,null,null,null,null,null,null,18133,{"$f":"R4+P5-Q5","v":-18133}]
["2023-11-19","دفعات نقديه",null,"سداد مستحقات المقاول من عهده احمد السيد بهاء الدين","مشروع اعمال مجمع الثلاجات البطاطس محطة الفرز و التعبئة /2024",null,null,null,null,null,null,null,null,null,null,18133,null,{"$f":"R5+P6-Q6","v":0}]
["2023-12-07","دفعات بنكية","تحويل","دفعه للمقاول تحويل من بنك مصر","مشروع اعمال مجمع الثلاجات البطاطس محطة الفرز و التعبئة /2025",null,null,null,null,null,null,null,null,null,null,68000,null,68000]
[null,null,null,"من احمد منصور ( المهندسون )","مشروع اعمال مجمع الثلاجات البطاطس محطة الفرز و التعبئة /2026",null,null,null,null,null,null,null,null,null,null,10000,null,78000]
[null,null,null,"من الشركة ","مشروع اعمال مجمع الثلاجات البطاطس محطة الفرز و التعبئة /2026",null,null,null,null,null,null,null,null,null,null,10000,null,88000]
[null,null,null,null,null,null,null,null,null,null,null,null,null,null,null,null,88000,0]
[null,null,null,null,null,null,null,null,null,null,null,null,null,null,null,null,null,0]
[null,null,null,null,null,null,null,null,null,null,null,null,null,null,null,null,null,0]
[null,null,null,null,null,null,null,null,null,null,null,null,null,null,null,null,null,0]
[null,null,null,null,null,null,null,null,null,null,null,null,null,null,null,null,null,0]
[null,null,null,null,null,null,null,null,null,null,null,null,null,null,null,null,null,0]
[null,null,null,null,null,null,null,null,null,null,null,null,null,null,null,null,null,0]
[null,null,null,null,null,null,null,null,null,null,null,null,null,null,null,null,null,0]
[null,null,null,null,null,null,null,null,null,null,null,null,null,null,null,null,null,0]
[null,null,null,null,null,null,null,null,null,null,null,null,null,null,null,null,null,0]
[null,null,null,null,null,null,null,null,null,null,null,null,null,null,null,null,null,0]
[null,null,null,null,null,null,null,null,null,null,null,null,null,null,null,null,null,0]
[null,null,null,null,null,null,null,null,null,null,null,null,null,null,null,null,null,0]
[null,null,null,null,null,null,null,null,null,null,null,null,null,null,null,null,null,0]
[null,null,null,null,null,null,null,null,null,null,null,null,null,null,null,null,null,0]
[null,null,null,null,null,null,null,null,null,null,null,null,null,null,null,null,null,0]
[null,null,null,null,null,null,null,null,null,null,null,null,null,null,null,null,null,0]
[null,null,null,null,null,null,null,null,null,null,null,null,null,null,null,null,null,0]
[null,null,null,null,null,null,null,null,null,null,null,null,null,null,null,null,null,0]

{"sheet":"ستون.احمد.عبد.المنعم","index":14,"n_rows":11,"n_cols":16,"rows_kept":11,"cut":false,"hidden":false,"merged":[[0,1,0,2]]}
[410,"ستون - احمد عبد المنعم",null,2023,null,null,null,null,null,null,null,null,null,{"$f":"SUBTOTAL(9,N4:N17)","v":218550},{"$f":"SUBTOTAL(9,O4:O17)","v":218550},{"$f":"N1-O1","v":0}]
[]
["التاريخ","الحركة /رقم القيد","رقم الشيك","البيــان","اسم المشروع","رقم العقد","قيمة العقد","بند الاعمال","الوحده","الكميه","السعر","قيمة المستخلص","رقم المستخلص","مدين","دائن","رصيـد"]
[null,null,null,"رصيد 2023/1/1",null,null,null,null,null,null,null,null,null,{"$f":"'[1]ارصده المقاولين'!K142","v":0},{"$f":"'[1]ارصده المقاولين'!L142","v":0}]
["2023-11-30","خصم","اشعار خصم","اشعار خصم على المقاول / ستون احمد عبد المنعم عدد 1 ساعه توريد لودر 910 * 270 جنيه ","مشروع اعمال مجمع الثلاجات البطاطس محطة الفرز و التعبئة /2023",null,null,"-",null,null,null,null,null,270,{"$f":"L5*85%","v":0},{"$f":"P4+N5-O5","v":270}]
["2024-01-01","أعمال مستحقه","مستخلصات","مستخلص جاري 1 ( اعمال التدعيم سقف d2 - كمر التدعيم فى b2,b3 ) اعمال التدعيم البلاطات الخرسانيه لاسقف المبانى الاداريه","مشروع اعمال مجمع الثلاجات البطاطس محطة الفرز و التعبئة /2023","9&2023",null,"اعمال التدعيم","م2",996,150,{"$f":"J6*K6","v":149400},null,null,{"$f":"L6","v":149400},{"$f":"P5+N6-O6","v":-149130}]
["2024-01-01","أعمال مستحقه","مستخلصات","مستخلص جاري 1 ( اعمال التدعيم سقف d2 - كمر التدعيم فى b2,b3 ) اعمال توريد وتنفيذ خرسانه مسلحه للميدات المستجده ورقاب الاعمده","مشروع اعمال مجمع الثلاجات البطاطس محطة الفرز و التعبئة /2023","9&2023",null,"اعمال التدعيم","م2",11.9,1000,{"$f":"J7*K7","v":11900},null,null,{"$f":"L7","v":11900},-161030]
["2024-01-01","اضافه","مذكرة اضافه","مذكرة اعمال اضافيه لاعمال الكمرات ( نحاته وتكسير +سقالات خشبيه + معالجه الكمر )","مشروع اعمال مجمع الثلاجات البطاطس محطة الفرز و التعبئة /2023","9&2023",null,null,null,null,null,null,null,null,{"$f":"12800+5000+5200","v":23000},-184030]
["2024-01-01","اضافه","مذكرة اضافه","مذكرة اضافه لاعمال النظافه تخصم من شركة الصرح ( عماله تنظيف + ايجار هيلتى + ايجار مولدات + يوميات عربيه توصيل )","مشروع اعمال مجمع الثلاجات البطاطس محطة الفرز و التعبئة /2023","9&2023",null,null,null,null,null,null,null,null,{"$f":"85*250+15*300+10*500+700*5","v":34250},-218280]
["2024-01-01","خصم","مذكرة خصم","مذكرة خصم على شركة ستون تضاف الى شركة يثرب عن مصاريف B2 ( عماله +نجارين + الهزاز + هليكوبتر +مواد +حداده +5هيلتى +مولد +عربيه نقل )","مشروع اعمال مجمع الثلاجات البطاطس محطة الفرز و التعبئة /2023","9&2023",null,null,null,null,null,null,null,{"$f":"26*300+4*400+1*400+1*10000+6*150+2*850+1*2150+16*300+5*150+2*450+1*1500","v":32500},null,-185780]
["2024-02-01","دفعات بنكيه","95158641","تحويل من بنك مصر","مشروع اعمال مجمع الثلاجات البطاطس محطة الفرز و التعبئة /2023",null,null,null,null,null,null,null,null,185780,null,0]

{"sheet":"محمود.لطفى.محمود.عبد.البارى","index":15,"n_rows":28,"n_cols":16,"rows_kept":28,"cut":false,"hidden":false,"merged":[[0,1,0,2]]}
[416,"محمود لطفي محمود عبد الباري",null,2023,null,null,null,null,null,null,null,null,null,{"$f":"SUBTOTAL(9,N4:N40)","v":110000},{"$f":"SUBTOTAL(9,O4:O40)","v":132000},{"$f":"N1-O1","v":-22000}]
[]
["التاريخ","الحركة /رقم القيد","رقم الشيك","البيــان","اسم المشروع","رقم العقد","قيمة العقد","بند الاعمال","الوحده","الكميه","السعر","قيمة المستخلص","رقم المستخلص","مدين","دائن","رصيـد"]
[null,null,null,"رصيد 2023/1/1",null,null,null,null,null,null,null,null,null,{"$f":"'[1]ارصده المقاولين'!K142","v":0},{"$f":"'[1]ارصده المقاولين'!L142","v":0}]
["2023-10-09","أعمال مستحقة","مستخلصات","مستخلص جاري 1 توريد مولد 60 ك بموقع الثلاجات بالضبعه من تاريخ 10-9-2023 الى 09-10-2023","استكمال اعمال مجمع ثلاجات البطاطس ومحطات الفرز والتعبئه","16&2023",22000,"ايجار مولد 60 ك","يوميه",26,"846.154",{"$f":"J5*K5","v":22000.004000000001},"جاري1",null,22000,{"$f":"P4+N5-O5","v":-22000}]
[null,null,null,null,null,null,null,null,null,null,null,null,null,null,null,{"$f":"P5+N6-O6","v":-22000}]
["2023-11-09","أعمال مستحقة","مستخلصات","مستخلص جاري 2 توريد مولد 60 ك بموقع الثلاجات بالضبعه من تاريخ 10-10-2023 الى 09-11-2023","استكمال اعمال مجمع ثلاجات البطاطس ومحطات الفرز والتعبئه","16&2023",22000,"ايجار مولد 60 ك","يوميه",26,"846.154",{"$f":"J7*K7","v":22000.004000000001},"جاري2",null,22000,-44000]
["2023-11-27","دفعات بنكية","تحويل بنكى","تحويل بنكى من حساب الشركة فة بنك مصر الى المقاول","استكمال اعمال مجمع ثلاجات البطاطس ومحطات الفرز والتعبئه",null,null,null,null,null,null,null,null,22000,null,-22000]
["2024-01-09","أعمال مستحقة","مستخلصات","مستخلص جاري 3 توريد مولد 60 ك بموقع الثلاجات بالضبعه من تاريخ 10-11-2023 الى 09-01-2024 ( شهرين )","استكمال اعمال مجمع ثلاجات البطاطس ومحطات الفرز والتعبئه","16&2023",22000,"ايجار مولد 60 ك","يوميه",52,"846.154",{"$f":"J9*K9","v":44000.008000000002},"جاري3",null,44000,-66000]
["2024-02-01","دفعات بنكية","تحويل بنكى","تحويل بنكى من حساب الشركة فة بنك مصر الى المقاول","استكمال اعمال مجمع ثلاجات البطاطس ومحطات الفرز والتعبئه",null,null,null,null,null,null,null,null,44000,null,-22000]
["2024-03-09","أعمال مستحقة","مستخلصات","مستخلص جاري 4 / محمود لطفى عبد الباري / توريد مولد 60 ك بموقع الثلاجات بالضبعه من تاريخ 10-01-2024 الى 09-03-2024 ( شهرين )","استكمال اعمال مجمع ثلاجات البطاطس ومحطات الفرز والتعبئه","16&2023",22000,"ايجار مولد 60 ك","يوميه",52,"846.154",{"$f":"J11*K11","v":44000.008000000002},"جاري4",null,44000,-66000]
["2024-03-25","دفعات بنكية","تحويل بنكى","تحويل بنكى من حساب الشركة فة بنك مصر الى المقاول","استكمال اعمال مجمع ثلاجات البطاطس ومحطات الفرز والتعبئه",null,null,null,null,null,null,null,null,44000,null,-22000]
[null,null,null,null,null,null,null,null,null,null,null,null,null,null,{"$f":"L13*90%","v":0},-22000]
[null,null,null,null,null,null,null,null,null,null,null,null,null,null,0,-22000]
[null,null,null,null,null,null,null,null,null,null,null,null,null,null,0,-22000]
[null,null,null,null,null,null,null,null,null,null,null,null,null,null,0,-22000]
[null,null,null,null,null,null,null,null,null,null,null,null,null,null,0,-22000]
[null,null,null,null,null,null,null,null,null,null,null,null,null,null,0,-22000]
[null,null,null,null,null,null,null,null,null,null,null,null,null,null,0,-22000]
[null,null,null,null,null,null,null,null,null,null,null,null,null,null,0,-22000]
[null,null,null,null,null,null,null,null,null,null,null,null,null,null,0,-22000]
[null,null,null,null,null,null,null,null,null,null,null,null,null,null,0,-22000]
[null,null,null,null,null,null,null,null,null,null,null,null,null,null,0,-22000]
[null,null,null,null,null,null,null,null,null,null,null,null,null,null,0,-22000]
[null,null,null,null,null,null,null,null,null,null,null,null,null,null,0,-22000]
[null,null,null,null,null,null,null,null,null,null,null,null,null,null,0,-22000]
[null,null,null,null,null,null,null,null,null,null,null,null,null,null,0,-22000]
[null,null,null,null,null,null,null,null,null,null,null,null,null,null,0,-22000]

{"sheet":"مصنع.الفنية.للخراطة.شمندى","index":16,"n_rows":17,"n_cols":18,"rows_kept":17,"cut":false,"hidden":false,"merged":[[0,1,0,2]]}
[377,"مصنع.الفنية.للخراطة.شمندى",null,2023,null,null,null,null,null,null,"عدد اليوميات",{"$f":"SUBTOTAL(9,L5:L144)","v":0},"قيمة الاعمال",{"$f":"SUBTOTAL(9,N5:N144)","v":0},null,{"$f":"SUBTOTAL(9,P5:P56)","v":1030000},{"$f":"SUBTOTAL(9,Q5:Q56)","v":637200},{"$f":"P1+P4-Q1-Q4","v":392800}]
[]
["التاريخ","الحركة /رقم القيد","رقم الشيك","البيــان","اسم المشروع","رقم العقد","بند الاعمال","بداية الاعمال","نهاية الاعمال","سعر البند بالعقد","الوحدة","الكمية","السعر","قيمة المستخلص","رقم المستخلص","مدين","دائن","رصيـد"]
[null,null,null,"2023-01-01",null,null,null,null,null,null,null,null,null,null,null,{"$f":"'[1]ارصده المقاولين'!K159","v":0},{"$f":"'[1]ارصده المقاولين'!L159","v":0}]
["2024-08-29","دفعه بنكية","تحويل بنكى","تحويل بنكى","مشروع اعمال مجمع الثلاجات البطاطس محطة الفرز و التعبئة /2023",null,null,null,null,"-",null,null,null,null,null,400000,null,{"$f":"R4+P5-Q5","v":400000}]
["2024-09-11","دفعه بنكية","تحويل بنكى","تحويل بنكى","مشروع اعمال مجمع الثلاجات البطاطس محطة الفرز و التعبئة /2023",null,null,null,null,"-",null,null,null,null,null,300000,null,{"$f":"R5+P6-Q6","v":700000}]
["2024-10-05","اعمال مستحقة","مستخلصات","مستخلص جارى 1","مشروع اعمال مجمع الثلاجات البطاطس محطة الفرز و التعبئة /2023",null,"توريد وتركيب",null,null,"-",null,null,null,null,null,null,637200,{"$f":"R6+P7-Q7","v":62800}]
["2024-10-24","دفعه بنكية","تحويل بنكى","تحويل بنكى","مشروع اعمال مجمع الثلاجات البطاطس محطة الفرز و التعبئة /2023",null,null,null,null,"-",null,null,null,null,null,330000,null,{"$f":"R7+P8-Q8","v":392800}]
[null,null,null,null,"مشروع اعمال مجمع الثلاجات البطاطس محطة الفرز و التعبئة /2023",null,null,null,null,"-",null,null,null,null,null,null,null,{"$f":"R8+P9-Q9","v":392800}]
[null,null,null,null,"مشروع اعمال مجمع الثلاجات البطاطس محطة الفرز و التعبئة /2023",null,null,null,null,null,null,null,null,null,null,null,null,392800]
[null,null,null,null,"مشروع اعمال مجمع الثلاجات البطاطس محطة الفرز و التعبئة /2023",null,null,null,null,"-",null,null,null,null,null,null,null,392800]
[null,null,null,null,"مشروع اعمال مجمع الثلاجات البطاطس محطة الفرز و التعبئة /2023",null,null,null,null,null,null,null,null,null,null,null,null,392800]
[null,null,null,null,"مشروع اعمال مجمع الثلاجات البطاطس محطة الفرز و التعبئة /2023",null,null,null,null,"-",null,null,null,null,null,null,null,392800]
[null,null,null,null,null,null,null,null,null,null,null,null,null,null,null,null,null,392800]
[null,null,null,null,null,null,null,null,null,"-",null,null,null,null,null,null,null,392800]
[null,null,null,null,null,null,null,null,null,null,null,null,null,null,null,null,null,392800]
[null,null,null,null,null,null,null,null,null,"-",null,null,null,null,null,null,null,392800]

{"sheet":"بيومى.أنور.بيومى.فرج","index":17,"n_rows":17,"n_cols":18,"rows_kept":17,"cut":false,"hidden":false,"merged":[[0,1,0,2]]}
[377,"بيومى.أنور.بيومى.فرج",null,2023,null,null,null,null,null,null,"عدد اليوميات",{"$f":"SUBTOTAL(9,L5:L144)","v":0},"قيمة الاعمال",{"$f":"SUBTOTAL(9,N5:N144)","v":0},null,{"$f":"SUBTOTAL(9,P5:P56)","v":778000},{"$f":"SUBTOTAL(9,Q5:Q56)","v":749194.3},{"$f":"P1+P4-Q1-Q4","v":28805.699999999953}]
[]
["التاريخ","الحركة /رقم القيد","رقم الشيك","البيــان","اسم المشروع","رقم العقد","بند الاعمال","بداية الاعمال","نهاية الاعمال","سعر البند بالعقد","الوحدة","الكمية","السعر","قيمة المستخلص","رقم المستخلص","مدين","دائن","رصيـد"]
[null,null,null,"2023-01-01",null,null,null,null,null,null,null,null,null,null,null,{"$f":"'[1]ارصده المقاولين'!K159","v":0},{"$f":"'[1]ارصده المقاولين'!L159","v":0}]
["2024-08-20","دفعه بنكية","تحويل","من بنك مصر",null,null,null,null,null,"-",null,null,null,null,null,40000,null,{"$f":"R4+P5-Q5","v":40000}]
["2024-08-29","دفعه بنكية","تحويل","من بنك مصر",null,null,null,null,null,"-",null,null,null,null,null,35000,null,{"$f":"R5+P6-Q6","v":75000}]
["2024-09-11","دفعه بنكية","تحويل","من بنك مصر",null,null,null,null,null,"-",null,null,null,null,null,25000,null,{"$f":"R6+P7-Q7","v":100000}]
["2024-09-22","اعمال مستحقة","مستخلص","مستخلص ج 1 اعمال سباكة داخلية",null,null,null,null,null,"-",null,null,null,null,null,null,92932.5,{"$f":"R7+P8-Q8","v":7067.5}]
["2024-09-22","اعمال مستحقة","مستخلص","مستخلص ج 2 اعمال سباكة داخلية غرف المطر والتفتيش والتسريب 50%",null,null,null,null,null,"-",null,null,null,null,null,null,6250,{"$f":"R8+P9-Q9","v":817.5}]
["2024-09-22","اعمال مستحقة","مستخلص","مستخلص ج 1 اعمال سباكة خارجية والموقع العام",null,null,null,null,null,null,null,null,null,null,null,null,650011.80000000005,-649194.30000000005]
["2024-09-22","خصم","مذكرة خصم","دفعات من شركة يثرب مصطفى الشاذلى",null,null,null,null,null,"-",null,null,null,null,null,651000,null,1805.6999999999534]
["2024-09-26","دفعه بنكية","تحويل","من بنك مصر",null,null,null,null,null,null,null,null,null,null,null,25000,null,26805.699999999953]
[null,null,null,null,null,null,null,null,null,"-",null,null,null,null,"انتظار تسوية",2000,null,28805.699999999953]
[null,null,null,null,null,null,null,null,null,null,null,null,null,null,null,null,null,28805.699999999953]
[null,null,null,null,null,null,null,null,null,"-",null,null,null,null,null,null,null,28805.699999999953]
[null,null,null,null,null,null,null,null,null,null,null,null,null,null,null,null,null,28805.699999999953]
[null,null,null,null,null,null,null,null,null,"-",null,null,null,null,null,null,null,28805.699999999953]

{"sheet":"شركة.جيسكو.للتاريض","index":18,"n_rows":17,"n_cols":18,"rows_kept":17,"cut":false,"hidden":false,"merged":[[0,1,0,2]]}
[377,"شركة.جيسكو.للتاريض",null,2023,null,null,null,null,null,null,"عدد اليوميات",{"$f":"SUBTOTAL(9,L5:L144)","v":0},"قيمة الاعمال",{"$f":"SUBTOTAL(9,N5:N144)","v":0},null,{"$f":"SUBTOTAL(9,P5:P56)","v":1588595},{"$f":"SUBTOTAL(9,Q5:Q56)","v":1748850},{"$f":"P1+P4-Q1-Q4","v":-160255}]
[]
["التاريخ","الحركة /رقم القيد","رقم الشيك","البيــان","اسم المشروع","رقم العقد","بند الاعمال","بداية الاعمال","نهاية الاعمال","سعر البند بالعقد","الوحدة","الكمية","السعر","قيمة المستخلص","رقم المستخلص","مدين","دائن","رصيـد"]
[null,null,null,"2023-01-01",null,null,null,null,null,null,null,null,null,null,null,{"$f":"'[1]ارصده المقاولين'!K159","v":0},{"$f":"'[1]ارصده المقاولين'!L159","v":0}]
["2024-05-20","تحويل من احمد منصور","مذكرة","اجمالى ماتم دفعه عن طريق المهندسون المتحدون",null,null,null,null,null,"-",null,null,null,null,null,1238595,null,{"$f":"R4+P5-Q5","v":1238595}]
["2024-05-21","دفعات بنكية","من بنك مصر","من بنك مصر",null,null,null,null,null,"-",null,null,null,null,null,100000,null,{"$f":"R5+P6-Q6","v":1338595}]
["2024-05-29","دفعات بنكية","من بنك مصر","من بنك مصر",null,null,null,null,null,"-",null,null,null,null,null,200000,null,{"$f":"R6+P7-Q7","v":1538595}]
["2024-09-11","اعمال",null,"مستخلص ج 1 منظومة التاريض للمحول والمولد ومانع الصواعق",null,null,null,null,null,"-",null,null,null,null,null,null,1748850,{"$f":"R7+P8-Q8","v":-210255}]
["2024-09-11","دفعات بنكية","من بنك مصر","من بنك مصر",null,null,null,null,null,"-",null,null,null,null,null,50000,null,{"$f":"R8+P9-Q9","v":-160255}]
[null,null,null,null,null,null,null,null,null,null,null,null,null,null,null,null,null,-160255]
[null,null,null,null,null,null,null,null,null,"-",null,null,null,null,null,null,null,-160255]
[null,null,null,null,null,null,null,null,null,null,null,null,null,null,null,null,null,-160255]
[null,null,null,null,null,null,null,null,null,"-",null,null,null,null,null,null,null,-160255]
[null,null,null,null,null,null,null,null,null,null,null,null,null,null,null,null,null,-160255]
[null,null,null,null,null,null,null,null,null,"-",null,null,null,null,null,null,null,-160255]
[null,null,null,null,null,null,null,null,null,null,null,null,null,null,null,null,null,-160255]
[null,null,null,null,null,null,null,null,null,"-",null,null,null,null,null,null,null,-160255]

{"sheet":"حسين.محسن.احمد","index":19,"n_rows":17,"n_cols":18,"rows_kept":17,"cut":false,"hidden":false,"merged":[[0,1,0,2]]}
[377,"حسين.محسن.احمد",null,2023,null,null,null,null,null,null,"عدد اليوميات",{"$f":"SUBTOTAL(9,L5:L144)","v":0},"قيمة الاعمال",{"$f":"SUBTOTAL(9,N5:N144)","v":0},null,{"$f":"SUBTOTAL(9,P5:P56)","v":989930},{"$f":"SUBTOTAL(9,Q5:Q56)","v":990920},{"$f":"P1+P4-Q1-Q4","v":-990}]
[]
["التاريخ","الحركة /رقم القيد","رقم الشيك","البيــان","اسم المشروع","رقم العقد","بند الاعمال","بداية الاعمال","نهاية الاعمال","سعر البند بالعقد","الوحدة","الكمية","السعر","قيمة المستخلص","رقم المستخلص","مدين","دائن","رصيـد"]
[null,null,null,"2023-01-01",null,null,null,null,null,null,null,null,null,null,null,{"$f":"'[1]ارصده المقاولين'!K159","v":0},{"$f":"'[1]ارصده المقاولين'!L159","v":0}]
["2024-04-24","إضافة اعمال",null,"اعمال إضافية بالموقع العام للافتتاح الرئاسي ","مشروع اعمال مجمع الثلاجات البطاطس محطة الفرز و التعبئة /2023",null,null,null,null,"-",null,null,null,null,null,null,370000,{"$f":"R4+P5-Q5","v":-370000}]
["2024-04-24","دفعات بنكية","تحويل","بنكى","مشروع اعمال مجمع الثلاجات البطاطس محطة الفرز و التعبئة /2023",null,null,null,null,"-",null,null,null,null,null,200000,null,{"$f":"R5+P6-Q6","v":-170000}]
["2024-04-30","دفعات بنكية","تحويل","بنكى","مشروع اعمال مجمع الثلاجات البطاطس محطة الفرز و التعبئة /2023",null,null,null,null,"-",null,null,null,null,null,100000,null,{"$f":"R6+P7-Q7","v":-70000}]
["2024-05-02","دفعات بنكية","تحويل","بنكى","مشروع اعمال مجمع الثلاجات البطاطس محطة الفرز و التعبئة /2023",null,null,null,null,"-",null,null,null,null,null,70000,null,{"$f":"R7+P8-Q8","v":0}]
["2024-05-16","دفعات بنكية","تحويل","بنكى","مشروع اعمال مجمع الثلاجات البطاطس محطة الفرز و التعبئة /2024",null,null,null,null,"-",null,null,null,null,null,50000,null,{"$f":"R8+P9-Q9","v":50000}]
["2024-05-07","اعمال مستحقة","مستخلصات","مستخلص ختامى توريدات عمالة ","مشروع اعمال مجمع الثلاجات البطاطس محطة الفرز و التعبئة /2025","16&2024",null,null,null,null,null,null,null,null,null,null,620920,-570920]
["2024-06-01","دفعات بنكية","تحويل","بنكى","مشروع اعمال مجمع الثلاجات البطاطس محطة الفرز و التعبئة /2026",null,null,null,null,"-",null,null,null,null,null,150000,null,-420920]
["2024-06-22","دفعات بنكية","تحويل","بنكى","مشروع اعمال مجمع الثلاجات البطاطس محطة الفرز و التعبئة /2027",null,null,null,null,null,null,null,null,null,null,50000,null,-370920]
["2024-07-17","دفعات بنكية","تحويل","بنكى","مشروع اعمال مجمع الثلاجات البطاطس محطة الفرز و التعبئة /2028",null,null,null,null,"-",null,null,null,null,null,100000,null,-270920]
["2024-09-03","دفعات بنكية","تحويل","من م /رمضان","مشروع اعمال مجمع الثلاجات البطاطس محطة الفرز و التعبئة /2029",null,null,null,null,null,null,null,null,null,null,70000,null,-200920]
["2024-09-12","خصم",null,"خصم على المورد على السائق عماد حمدى","مشروع اعمال مجمع الثلاجات البطاطس محطة الفرز و التعبئة /2030",null,null,null,null,"-",null,null,null,null,"خصم",2930,null,-197990]
["2024-09-11","دفعات بنكية","تحويل","من م /رمضان","مشروع اعمال مجمع الثلاجات البطاطس محطة الفرز و التعبئة /2031",null,null,null,null,null,null,null,null,null,null,100000,null,-97990]
["2024-09-26","دفعات بنكية","تحويل","بنك مصر","مشروع اعمال مجمع الثلاجات البطاطس محطة الفرز و التعبئة /2032",null,null,null,null,"-",null,null,null,null,null,97000,null,-990]

{"sheet":"خالد.فريد.محمد","index":20,"n_rows":17,"n_cols":18,"rows_kept":17,"cut":false,"hidden":false,"merged":[[0,1,0,2]]}
[377,"خالد.فريد.محمد",null,2023,null,null,null,null,null,null,"عدد اليوميات",{"$f":"SUBTOTAL(9,L5:L144)","v":0},"قيمة الاعمال",{"$f":"SUBTOTAL(9,N5:N144)","v":0},null,{"$f":"SUBTOTAL(9,P5:P56)","v":180000},{"$f":"SUBTOTAL(9,Q5:Q56)","v":0},{"$f":"P1+P4-Q1-Q4","v":180000}]
[]
["التاريخ","الحركة /رقم القيد","رقم الشيك","البيــان","اسم المشروع","رقم العقد","بند الاعمال","بداية الاعمال","نهاية الاعمال","سعر البند بالعقد","الوحدة","الكمية","السعر","قيمة المستخلص","رقم المستخلص","مدين","دائن","رصيـد"]
[null,null,null,"2023-01-01",null,null,null,null,null,null,null,null,null,null,null,{"$f":"'[1]ارصده المقاولين'!K159","v":0},{"$f":"'[1]ارصده المقاولين'!L159","v":0}]
["2024-08-29","دفعات بنكية","تحويل ","من بنك مصر","مشروع اعمال مجمع الثلاجات البطاطس محطة الفرز و التعبئة /2023",null,null,null,null,"-",null,null,null,null,null,30000,null,{"$f":"R4+P5-Q5","v":30000}]
["2024-09-11","دفعات بنكية","تحويل ","من بنك مصر","مشروع اعمال مجمع الثلاجات البطاطس محطة الفرز و التعبئة /2023",null,null,null,null,"-",null,null,null,null,null,150000,null,{"$f":"R5+P6-Q6","v":180000}]
[null,null,null,null,"مشروع اعمال مجمع الثلاجات البطاطس محطة الفرز و التعبئة /2023",null,null,null,null,"-",null,null,null,null,null,null,null,{"$f":"R6+P7-Q7","v":180000}]
[null,null,null,null,"مشروع اعمال مجمع الثلاجات البطاطس محطة الفرز و التعبئة /2023",null,null,null,null,"-",null,null,null,null,null,null,null,{"$f":"R7+P8-Q8","v":180000}]
[null,null,null,null,null,null,null,null,null,"-",null,null,null,null,null,null,null,{"$f":"R8+P9-Q9","v":180000}]
[null,null,null,null,null,null,null,null,null,null,null,null,null,null,null,null,null,180000]
[null,null,null,null,null,null,null,null,null,"-",null,null,null,null,null,null,null,180000]
[null,null,null,null,null,null,null,null,null,null,null,null,null,null,null,null,null,180000]
[null,null,null,null,null,null,null,null,null,"-",null,null,null,null,null,null,null,180000]
[null,null,null,null,null,null,null,null,null,null,null,null,null,null,null,null,null,180000]
[null,null,null,null,null,null,null,null,null,"-",null,null,null,null,null,null,null,180000]
[null,null,null,null,null,null,null,null,null,null,null,null,null,null,null,null,null,180000]
[null,null,null,null,null,null,null,null,null,"-",null,null,null,null,null,null,null,180000]

{"sheet":"خليفه.فرغلى.عبدالحميد","index":21,"n_rows":19,"n_cols":18,"rows_kept":19,"cut":false,"hidden":false,"merged":[[0,1,0,2]]}
[377,"خليفه.فرغلى.عبدالحميد",null,2023,null,null,null,null,null,null,"عدد اليوميات",{"$f":"SUBTOTAL(9,L5:L144)","v":0},"قيمة الاعمال",{"$f":"SUBTOTAL(9,N5:N144)","v":0},null,{"$f":"SUBTOTAL(9,P5:P56)","v":1099200},{"$f":"SUBTOTAL(9,Q5:Q56)","v":1114795.9000000001},{"$f":"P1+P4-Q1-Q4","v":-15595.90000000014}]
[]
["التاريخ","الحركة /رقم القيد","رقم الشيك","البيــان","اسم المشروع","رقم العقد","بند الاعمال","بداية الاعمال","نهاية الاعمال","سعر البند بالعقد","الوحدة","الكمية","السعر","قيمة المستخلص","رقم المستخلص","مدين","دائن","رصيـد"]
[null,null,null,"2023-01-01",null,null,null,null,null,null,null,null,null,null,null,{"$f":"'[1]ارصده المقاولين'!K159","v":0},{"$f":"'[1]ارصده المقاولين'!L159","v":0}]
["2024-08-20","دفعات بنكية","تحويل","من بنك مصر","مشروع اعمال مجمع الثلاجات البطاطس محطة الفرز و التعبئة /2023",null,null,null,null,"-",null,null,null,null,null,20000,null,{"$f":"R4+P5-Q5","v":20000}]
["2024-08-29","دفعات بنكية","تحويل","من بنك مصر","مشروع اعمال مجمع الثلاجات البطاطس محطة الفرز و التعبئة /2023",null,null,null,null,"-",null,null,null,null,null,20000,null,{"$f":"R5+P6-Q6","v":40000}]
["2024-09-11","دفعات بنكية","تحويل","من بنك مصر","مشروع اعمال مجمع الثلاجات البطاطس محطة الفرز و التعبئة /2023",null,null,null,null,"-",null,null,null,null,null,25000,null,{"$f":"R6+P7-Q7","v":65000}]
["2024-09-22","اعمال مستحقة","مستخلص","جارى 1 و2 اعمال سافيتو وبياض","مشروع اعمال مجمع الثلاجات البطاطس محطة الفرز و التعبئة /2023",null,null,null,null,"-",null,null,null,null,null,null,1056814,{"$f":"R7+P8-Q8","v":-991814}]
["2024-09-22","مذكرة خصم","خصم","دفعات استلمها  من شركة يثرب","مشروع اعمال مجمع الثلاجات البطاطس محطة الفرز و التعبئة /2024",null,null,null,null,"-",null,null,null,null,null,988600,null,{"$f":"R8+P9-Q9","v":-3214}]
["2024-09-26","دفعات بنكية","تحويل","من بنك مصر","مشروع اعمال مجمع الثلاجات البطاطس محطة الفرز و التعبئة /2025",null,null,null,null,null,null,null,null,null,null,25000,null,21786]
["2024-09-30","اعمال مستحقة","مستخلص","مستخلص ج 3 عمالة خارجية مرمات","مشروع اعمال مجمع الثلاجات البطاطس محطة الفرز و التعبئة /2026",null,null,null,null,"-",null,null,null,null,null,null,2100,19686]
["2024-09-30","اعمال مستحقة","مستخلص","مستخلص ج 3 اعمال سافيتو بتاريخ 21-9","مشروع اعمال مجمع الثلاجات البطاطس محطة الفرز و التعبئة /2027",null,null,null,null,null,null,null,null,null,null,null,10334.84,9351.16]
["2024-09-30","اعمال مستحقة","مستخلص","مستخلص ج 3 اعمال سافيتو بتاريخ 21-9","مشروع اعمال مجمع الثلاجات البطاطس محطة الفرز و التعبئة /2028",null,null,null,null,"-",null,null,null,null,null,null,2657.06,6694.1]
["2024-10-08","اعمال مستحقة","مستخلص","مستخلص ج 4 عمالة خارجية مرمات","مشروع اعمال مجمع الثلاجات البطاطس محطة الفرز و التعبئة /2029",null,null,null,null,null,null,null,null,null,null,null,1400,5294.1]
["2024-10-08","اعمال مستحقة","مستخلص","مستخلص ج 4 اعمال سافيتو بتاريخ8-10","مشروع اعمال مجمع الثلاجات البطاطس محطة الفرز و التعبئة /2030",null,null,null,null,"-",null,null,null,null,null,null,3491.25,1802.8500000000004]
["2024-10-08","اعمال مستحقة","مستخلص","مستخلص ج 4 اعمال سافيتو بتاريخ8-10","مشروع اعمال مجمع الثلاجات البطاطس محطة الفرز و التعبئة /2031",null,null,null,null,null,null,null,null,null,null,null,16010.75,-14207.9]
["2024-10-08","اعمال مستحقة","مستخلص","مستخلص ج 4 اعمال سافيتو بتاريخ8-10","مشروع اعمال مجمع الثلاجات البطاطس محطة الفرز و التعبئة /2032",null,null,null,null,"-",null,null,null,null,null,null,6441,-20648.900000000001]
["2024-10-24","دفعات بنكية","تحويل","من بنك مصر","مشروع اعمال مجمع الثلاجات البطاطس محطة الفرز و التعبئة /2033",null,null,null,null,null,null,null,null,null,null,20600,null,-48.900000000001455]
["2024-11-09","اعمال مستحقة","مستخلص","مستخلص ج 45 اعمال سافيتو بتاريخ11-9","مشروع اعمال مجمع الثلاجات البطاطس محطة الفرز و التعبئة /2034",null,null,null,null,null,null,null,null,null,null,null,{"$f":"14217+1330","v":15547},-15595.900000000001]

{"sheet":"سيد.احمد.ذكى","index":22,"n_rows":17,"n_cols":18,"rows_kept":17,"cut":false,"hidden":false,"merged":[[0,1,0,2]]}
[377,"سيد.احمد.ذكى",null,2023,null,null,null,null,null,null,"عدد اليوميات",{"$f":"SUBTOTAL(9,L5:L144)","v":0},"قيمة الاعمال",{"$f":"SUBTOTAL(9,N5:N144)","v":0},null,{"$f":"SUBTOTAL(9,P5:P56)","v":83700},{"$f":"SUBTOTAL(9,Q5:Q56)","v":83742.5},{"$f":"P1+P4-Q1-Q4","v":-42.5}]
[]
["التاريخ","الحركة /رقم القيد","رقم الشيك","البيــان","اسم المشروع","رقم العقد","بند الاعمال","بداية الاعمال","نهاية الاعمال","سعر البند بالعقد","الوحدة","الكمية","السعر","قيمة المستخلص","رقم المستخلص","مدين","دائن","رصيـد"]
[null,null,null,"2023-01-01",null,null,null,null,null,null,null,null,null,null,null,{"$f":"'[1]ارصده المقاولين'!K159","v":0},{"$f":"'[1]ارصده المقاولين'!L159","v":0}]
["2024-10-13","اعمال مستحقة","مستخلص","جارى1 توريد وتركيب اعمال بلاط سنجابى 1763 متر*50ج 13-10-2024","مشروع اعمال مجمع الثلاجات البطاطس محطة الفرز و التعبئة /2023",null,null,null,null,"-",null,null,null,null,null,null,83742.5,{"$f":"R4+P5-Q5","v":-83742.5}]
["2024-08-20","دفعات","من يثرب","دفعات من شركة يثرب","مشروع اعمال مجمع الثلاجات البطاطس محطة الفرز و التعبئة /2023",null,null,null,null,"-",null,null,null,null,null,62000,null,{"$f":"R5+P6-Q6","v":-21742.5}]
["2024-10-24","دفعات بنكية","تحويل","من بنك مصر","مشروع اعمال مجمع الثلاجات البطاطس محطة الفرز و التعبئة /2023",null,null,null,null,"-",null,null,null,null,null,21700,null,{"$f":"R6+P7-Q7","v":-42.5}]
[null,null,null,null,"مشروع اعمال مجمع الثلاجات البطاطس محطة الفرز و التعبئة /2023",null,null,null,null,"-",null,null,null,null,null,null,null,{"$f":"R7+P8-Q8","v":-42.5}]
[null,null,null,null,null,null,null,null,null,"-",null,null,null,null,null,null,null,{"$f":"R8+P9-Q9","v":-42.5}]
[null,null,null,null,null,null,null,null,null,null,null,null,null,null,null,null,null,-42.5]
[null,null,null,null,null,null,null,null,null,"-",null,null,null,null,null,null,null,-42.5]
[null,null,null,null,null,null,null,null,null,null,null,null,null,null,null,null,null,-42.5]
[null,null,null,null,null,null,null,null,null,"-",null,null,null,null,null,null,null,-42.5]
[null,null,null,null,null,null,null,null,null,null,null,null,null,null,null,null,null,-42.5]
[null,null,null,null,null,null,null,null,null,"-",null,null,null,null,null,null,null,-42.5]
[null,null,null,null,null,null,null,null,null,null,null,null,null,null,null,null,null,-42.5]
[null,null,null,null,null,null,null,null,null,"-",null,null,null,null,null,null,null,-42.5]

{"sheet":"شركة.الاتحاد.شريف.معوض","index":23,"n_rows":17,"n_cols":18,"rows_kept":17,"cut":false,"hidden":false,"merged":[[0,1,0,2]]}
[377,"شركة.الاتحاد.شريف.معوض",null,2023,null,null,null,null,null,null,"عدد اليوميات",{"$f":"SUBTOTAL(9,L5:L144)","v":59521.22},"قيمة الاعمال",{"$f":"SUBTOTAL(9,N5:N144)","v":1411246.35},null,{"$f":"SUBTOTAL(9,P5:P56)","v":179950},{"$f":"SUBTOTAL(9,Q5:Q56)","v":1470552.35},{"$f":"P1+P4-Q1-Q4","v":-1290602.3500000001}]
[]
["التاريخ","الحركة /رقم القيد","رقم الشيك","البيــان","اسم المشروع","رقم العقد","بند الاعمال","بداية الاعمال","نهاية الاعمال","سعر البند بالعقد","الوحدة","الكمية","السعر","قيمة المستخلص","رقم المستخلص","مدين","دائن","رصيـد"]
[null,null,null,"2023-01-01",null,null,null,null,null,null,null,null,null,null,null,{"$f":"'[1]ارصده المقاولين'!K159","v":0},{"$f":"'[1]ارصده المقاولين'!L159","v":0}]
["2024-08-29","دفعات بنكية","تحويل","من بنك مصر","مشروع اعمال مجمع الثلاجات البطاطس محطة الفرز و التعبئة /2023",null,null,null,null,"-",null,null,null,null,null,50000,null,{"$f":"R4+P5-Q5","v":50000}]
["2024-09-11","دفعات بنكية","تحويل","من بنك مصر","مشروع اعمال مجمع الثلاجات البطاطس محطة الفرز و التعبئة /2023",null,null,null,null,"-",null,null,null,null,null,100000,null,{"$f":"R5+P6-Q6","v":150000}]
["2024-11-02","مستخلص","مستخلص ","جارى 1 اعمال طرق والانترلوك والبلدورة","مشروع اعمال مجمع الثلاجات البطاطس محطة الفرز و التعبئة /2023",null,null,null,null,"-",null,5378.22,20,{"$f":"+L7*M7*90/100","v":96807.96},null,null,{"$f":"+N7","v":96807.96},{"$f":"R6+P7-Q7","v":53192.039999999994}]
["2024-11-02","مستخلص","مستخلص ","جارى 1 اعمال طرق والانترلوك والبلدورة","مشروع اعمال مجمع الثلاجات البطاطس محطة الفرز و التعبئة /2023",null,null,null,null,"-",null,"5456.14","15",{"$f":"+L8*M8*90/100","v":73657.890000000014},null,null,{"$f":"+N8","v":73657.890000000014},{"$f":"R7+P8-Q8","v":-20465.85000000002}]
["2024-11-02","مستخلص","مستخلص ","جارى 1 اعمال طرق والانترلوك والبلدورة","مشروع اعمال مجمع الثلاجات البطاطس محطة الفرز و التعبئة /2024",null,null,null,null,"-",null,25261,25,568372.5,null,null,568372.5,{"$f":"R8+P9-Q9","v":-588838.35}]
["2024-11-02","مستخلص","مستخلص ","جارى 1 اعمال طرق والانترلوك والبلدورة","مشروع اعمال مجمع الثلاجات البطاطس محطة الفرز و التعبئة /2025",null,null,null,null,null,null,25265,25,568462.5,null,null,568462.5,-1157300.8500000001]
["2024-11-02","مستخلص","مستخلص ","جارى 1 اعمال طرق والانترلوك والبلدورة","مشروع اعمال مجمع الثلاجات البطاطس محطة الفرز و التعبئة /2026",null,null,null,null,"-",null,1397,35,44005.5,null,null,44005.5,-1201306.3500000001]
["2024-11-02","مستخلص","مستخلص ","جارى 1 اعمال طرق والانترلوك والبلدورة","مشروع اعمال مجمع الثلاجات البطاطس محطة الفرز و التعبئة /2027",null,null,null,null,null,null,2220,30,59940,null,null,59940,-1261246.3500000001]
["2024-11-02","خصم","مذكرة","خصم بمذكرة",null,null,null,null,null,"-",null,null,null,null,null,{"$f":"4800+14350+10800","v":29950},null,-1231296.3500000001]
["2024-11-02","اعمال إضافية","مذكرة اعمال إضافية","اعمال إضافية ",null,null,null,null,null,null,null,null,null,null,null,null,{"$f":"12400+28866+15640+2400","v":59306},-1290602.3500000001]
[null,null,null,null,null,null,null,null,null,"-",null,null,null,null,null,null,null,-1290602.3500000001]
[null,null,null,null,null,null,null,null,null,null,null,null,null,null,null,null,null,-1290602.3500000001]
[null,null,null,null,null,null,null,null,null,"-",null,null,null,null,null,null,null,-1290602.3500000001]

{"sheet":"شركة.الصفا.سيزر.مان.لفت","index":24,"n_rows":17,"n_cols":18,"rows_kept":17,"cut":false,"hidden":false,"merged":[[0,1,0,2]]}
[377,"شركة.الصفا.سيزر.مان.لفت",null,2023,null,null,null,null,null,null,"عدد اليوميات",{"$f":"SUBTOTAL(9,L5:L144)","v":0},"قيمة الاعمال",{"$f":"SUBTOTAL(9,N5:N144)","v":0},null,{"$f":"SUBTOTAL(9,P5:P56)","v":0},{"$f":"SUBTOTAL(9,Q5:Q56)","v":70842.990000000005},{"$f":"P1+P4-Q1-Q4","v":-70842.990000000005}]
[]
["التاريخ","الحركة /رقم القيد","رقم الشيك","البيــان","اسم المشروع","رقم العقد","بند الاعمال","بداية الاعمال","نهاية الاعمال","سعر البند بالعقد","الوحدة","الكمية","السعر","قيمة المستخلص","رقم المستخلص","مدين","دائن","رصيـد"]
[null,null,null,"2023-01-01",null,null,null,null,null,null,null,null,null,null,null,{"$f":"'[1]ارصده المقاولين'!K159","v":0},{"$f":"'[1]ارصده المقاولين'!L159","v":0}]
["2024-10-22","اعمال مشتحقة","مذكرة اعمال","ايجار مان لفت 274.5 س*200من25-9 الى 22-10","مشروع اعمال مجمع الثلاجات البطاطس محطة الفرز و التعبئة /2023",null,null,null,null,"-",null,null,null,null,null,null,{"$f":"274.5*200","v":54900},{"$f":"R4+P5-Q5","v":-54900}]
["2024-10-22","اعمال مشتحقة","مذكرة اعمال","ايجار سيزر 274.5 س*171.43من25-9 الى 22-11","مشروع اعمال مجمع الثلاجات البطاطس محطة الفرز و التعبئة /2023",null,null,null,null,"-",null,null,null,null,null,null,{"$f":"93*171.43","v":15942.99},{"$f":"R5+P6-Q6","v":-70842.990000000005}]
[null,null,null,null,null,null,null,null,null,"-",null,null,null,null,null,null,null,{"$f":"R6+P7-Q7","v":-70842.990000000005}]
[null,null,null,null,null,null,null,null,null,"-",null,null,null,null,null,null,null,{"$f":"R7+P8-Q8","v":-70842.990000000005}]
[null,null,null,null,null,null,null,null,null,"-",null,null,null,null,null,null,null,{"$f":"R8+P9-Q9","v":-70842.990000000005}]
[null,null,null,null,null,null,null,null,null,null,null,null,null,null,null,null,null,-70842.990000000005]
[null,null,null,null,null,null,null,null,null,"-",null,null,null,null,null,null,null,-70842.990000000005]
[null,null,null,null,null,null,null,null,null,null,null,null,null,null,null,null,null,-70842.990000000005]
[null,null,null,null,null,null,null,null,null,"-",null,null,null,null,null,null,null,-70842.990000000005]
[null,null,null,null,null,null,null,null,null,null,null,null,null,null,null,null,null,-70842.990000000005]
[null,null,null,null,null,null,null,null,null,"-",null,null,null,null,null,null,null,-70842.990000000005]
[null,null,null,null,null,null,null,null,null,null,null,null,null,null,null,null,null,-70842.990000000005]
[null,null,null,null,null,null,null,null,null,"-",null,null,null,null,null,null,null,-70842.990000000005]

{"sheet":"صبحى.السيد.عبد.العزيز.بيومى","index":25,"n_rows":17,"n_cols":18,"rows_kept":17,"cut":false,"hidden":false,"merged":[[0,1,0,2]]}
[377,"صبحى.السيد.عبد.العزيز.بيومى",null,2023,null,null,null,null,null,null,"عدد اليوميات",{"$f":"SUBTOTAL(9,L5:L144)","v":0},"قيمة الاعمال",{"$f":"SUBTOTAL(9,N5:N144)","v":0},null,{"$f":"SUBTOTAL(9,P5:P56)","v":23733},{"$f":"SUBTOTAL(9,Q5:Q56)","v":23773.4},{"$f":"P1+P4-Q1-Q4","v":-40.400000000001455}]
[]
["التاريخ","الحركة /رقم القيد","رقم الشيك","البيــان","اسم المشروع","رقم العقد","بند الاعمال","بداية الاعمال","نهاية الاعمال","سعر البند بالعقد","الوحدة","الكمية","السعر","قيمة المستخلص","رقم المستخلص","مدين","دائن","رصيـد"]
[null,null,null,"2023-01-01",null,null,null,null,null,null,null,null,null,null,null,{"$f":"'[1]ارصده المقاولين'!K159","v":0},{"$f":"'[1]ارصده المقاولين'!L159","v":0}]
["2024-09-22","اعمال مستحقة","مستخلص","بناء 33.962 متر *700ج طوب اسمنتى b1","مشروع اعمال مجمع الثلاجات البطاطس محطة الفرز و التعبئة /2023",null,null,null,null,"-",null,null,null,null,null,null,23773.4,{"$f":"R4+P5-Q5","v":-23773.4}]
["2024-08-31","دفعه نقدية","505","دفعه كشف60","مشروع اعمال مجمع الثلاجات البطاطس محطة الفرز و التعبئة /2023",null,null,null,null,"-",null,null,null,null,null,10000,null,{"$f":"R5+P6-Q6","v":-13773.400000000001}]
["2024-09-04","دفعه نقدية","518","دفعه كشف62","مشروع اعمال مجمع الثلاجات البطاطس محطة الفرز و التعبئة /2023",null,null,null,null,"-",null,null,null,null,null,4000,null,{"$f":"R6+P7-Q7","v":-9773.4000000000015}]
["2024-09-24","دفعه نقدية","1370","دفعه كشف65","مشروع اعمال مجمع الثلاجات البطاطس محطة الفرز و التعبئة /2023",null,null,null,null,"-",null,null,null,null,null,9733,null,{"$f":"R7+P8-Q8","v":-40.400000000001455}]
[null,null,null,null,null,null,null,null,null,"-",null,null,null,null,null,null,null,{"$f":"R8+P9-Q9","v":-40.400000000001455}]
[null,null,null,null,null,null,null,null,null,null,null,null,null,null,null,null,null,-40.400000000001455]
[null,null,null,null,null,null,null,null,null,"-",null,null,null,null,null,null,null,-40.400000000001455]
[null,null,null,null,null,null,null,null,null,null,null,null,null,null,null,null,null,-40.400000000001455]
[null,null,null,null,null,null,null,null,null,"-",null,null,null,null,null,null,null,-40.400000000001455]
[null,null,null,null,null,null,null,null,null,null,null,null,null,null,null,null,null,-40.400000000001455]
[null,null,null,null,null,null,null,null,null,"-",null,null,null,null,null,null,null,-40.400000000001455]
[null,null,null,null,null,null,null,null,null,null,null,null,null,null,null,null,null,-40.400000000001455]
[null,null,null,null,null,null,null,null,null,"-",null,null,null,null,null,null,null,-40.400000000001455]

{"sheet":"شوقى.سيد.عبده","index":26,"n_rows":17,"n_cols":18,"rows_kept":17,"cut":false,"hidden":false,"merged":[[0,1,0,2]]}
[377,"شوقى.سيد.عبده",null,2023,null,null,null,null,null,null,"عدد اليوميات",{"$f":"SUBTOTAL(9,L5:L144)","v":0},"قيمة الاعمال",{"$f":"SUBTOTAL(9,N5:N144)","v":0},null,{"$f":"SUBTOTAL(9,P5:P56)","v":473824},{"$f":"SUBTOTAL(9,Q5:Q56)","v":306364},{"$f":"P1+P4-Q1-Q4","v":167460}]
[]
["التاريخ","الحركة /رقم القيد","رقم الشيك","البيــان","اسم المشروع","رقم العقد","بند الاعمال","بداية الاعمال","نهاية الاعمال","سعر البند بالعقد","الوحدة","الكمية","السعر","قيمة المستخلص","رقم المستخلص","مدين","دائن","رصيـد"]
[null,null,null,"2023-01-01",null,null,null,null,null,null,null,null,null,null,null,{"$f":"'[1]ارصده المقاولين'!K159","v":0},{"$f":"'[1]ارصده المقاولين'!L159","v":0}]
["2024-01-31","مستخلصات",null,null,"مشروع اعمال مجمع الثلاجات البطاطس محطة الفرز و التعبئة /2023",null,null,null,null,"-",null,null,null,null,"جارى 1",null,16800,{"$f":"0+Q5-P5","v":16800}]
["2024-01-31","مستخلصات",null,null,"مشروع اعمال مجمع الثلاجات البطاطس محطة الفرز و التعبئة /2023",null,null,null,null,"-",null,null,null,null,"جارى 1",null,14400,{"$f":"+R5+Q6-P6","v":31200}]
["2024-03-02","مستخلصات",null,null,"مشروع اعمال مجمع الثلاجات البطاطس محطة الفرز و التعبئة /2023",null,null,null,null,"-",null,null,null,null,"جارى 1",null,192000,{"$f":"+R6+Q7-P7","v":223200}]
["2024-03-02","مستخلصات",null,null,"مشروع اعمال مجمع الثلاجات البطاطس محطة الفرز و التعبئة /2023",null,null,null,null,"-",null,null,null,null,"جارى 2",null,12320,235520]
["2024-03-02","مستخلصات",null,null,"مشروع اعمال مجمع الثلاجات البطاطس محطة الفرز و التعبئة /2023",null,null,null,null,"-",null,null,null,null,"جارى 2",null,12320,247840]
["2024-03-31","مستخلصات",null,null,"مشروع اعمال مجمع الثلاجات البطاطس محطة الفرز و التعبئة /2023",null,null,null,null,null,null,null,null,null,"جارى 3",null,16500,264340]
["2024-01-31","مستخلصات",null,null,"مشروع اعمال مجمع الثلاجات البطاطس محطة الفرز و التعبئة /2023",null,null,null,null,"-",null,null,null,null,"جارى 3",null,16200,280540]
["2024-03-02","مستخلصات",null,null,"مشروع اعمال مجمع الثلاجات البطاطس محطة الفرز و التعبئة /2023",null,null,null,null,null,null,null,null,null,"جارى 1",null,25824,306364]
["2024-02-13","دفعات",null,null,"مشروع اعمال مجمع الثلاجات البطاطس محطة الفرز و التعبئة /2023",null,null,null,null,"-",null,null,null,null,null,31200,null,275164]
["2024-01-24","دفعات",null,null,"مشروع اعمال مجمع الثلاجات البطاطس محطة الفرز و التعبئة /2023",null,null,null,null,null,null,null,null,null,null,87500,null,187664]
["2024-03-25","دفعات",null,null,"مشروع اعمال مجمع الثلاجات البطاطس محطة الفرز و التعبئة /2023",null,null,null,null,"-",null,null,null,null,null,155124,null,32540]
["2024-11-05","دفعات",null,null,"مشروع اعمال مجمع الثلاجات البطاطس محطة الفرز و التعبئة /2023",null,null,null,null,null,null,null,null,null,null,200000,null,-167460]
[null,null,null,null,null,null,null,null,null,"-",null,null,null,null,null,null,null,-167460]

{"sheet":"شركة.ماستر.بيلدرز","index":27,"n_rows":17,"n_cols":18,"rows_kept":17,"cut":false,"hidden":false,"merged":[[0,1,0,2]]}
[377,"شركة.ماستر.بيلدرز",null,2023,null,null,null,null,null,null,"عدد اليوميات",{"$f":"SUBTOTAL(9,L5:L144)","v":0},"قيمة الاعمال",{"$f":"SUBTOTAL(9,N5:N144)","v":0},null,{"$f":"SUBTOTAL(9,P5:P56)","v":2303945},{"$f":"SUBTOTAL(9,Q5:Q56)","v":2045970},{"$f":"P1+P4-Q1-Q4","v":257975}]
[]
["التاريخ","الحركة /رقم القيد","رقم الشيك","البيــان","اسم المشروع","رقم العقد","بند الاعمال","بداية الاعمال","نهاية الاعمال","سعر البند بالعقد","الوحدة","الكمية","السعر","قيمة المستخلص","رقم المستخلص","مدين","دائن","رصيـد"]
[null,null,null,"2023-01-01",null,null,null,null,null,null,null,null,null,null,null,{"$f":"'[1]ارصده المقاولين'!K159","v":0},{"$f":"'[1]ارصده المقاولين'!L159","v":0}]
[null,null,null,null,"مشروع اعمال مجمع الثلاجات البطاطس محطة الفرز و التعبئة /2023",null,null,null,null,"-",null,null,null,null,null,200000,null,{"$f":"R4+P5-Q5","v":200000}]
[null,null,null,null,"مشروع اعمال مجمع الثلاجات البطاطس محطة الفرز و التعبئة /2023",null,null,null,null,"-",null,null,null,null,null,1000000,null,{"$f":"R5+P6-Q6","v":1200000}]
[null,null,null,null,"مشروع اعمال مجمع الثلاجات البطاطس محطة الفرز و التعبئة /2023",null,null,null,null,"-",null,null,null,null,null,3100,null,{"$f":"R6+P7-Q7","v":1203100}]
[null,null,null,null,"مشروع اعمال مجمع الثلاجات البطاطس محطة الفرز و التعبئة /2023",null,null,null,null,"-",null,null,null,null,null,750000,null,{"$f":"R7+P8-Q8","v":1953100}]
[null,null,null,null,null,null,null,null,null,"-",null,null,null,null,null,765,null,{"$f":"R8+P9-Q9","v":1953865}]
[null,null,null,null,null,null,null,null,null,null,null,null,null,null,null,80,null,1953945]
[null,null,null,null,null,null,null,null,null,"-",null,null,null,null,null,null,2045970,-92025]
[null,null,null,null,null,null,null,null,null,null,null,null,null,null,null,94000,null,1975]
[null,null,null,null,null,null,null,null,null,"-",null,null,null,null,null,256000,null,257975]
[null,null,null,null,null,null,null,null,null,null,null,null,null,null,null,null,null,257975]
[null,null,null,null,null,null,null,null,null,"-",null,null,null,null,null,null,null,257975]
[null,null,null,null,null,null,null,null,null,null,null,null,null,null,null,null,null,257975]
[null,null,null,null,null,null,null,null,null,"-",null,null,null,null,null,null,null,257975]